Workbook

Sheet grade (hidden)
A1: الصفوف | C1: المواد
A3: 9A1 | C3: التربية الإسلامية
A4: 9APP1 | C4: اللغة العربية
A5: 9G1 | C5: اللغة الإنجليزية
A6: 9G2 | C6: الرياضيات
A7: 9G3 | C7: الدراسات الاجتماعية
A8: 9G4 | C8: الكيمياء
A9: 9G5 | C9: الفيزياء
A10: 10A1 | C10: الأحياء
A11: 10APP1 | C11: العلوم
A12: 10G1
A13: 10G2
A14: 10G3
A15: 10G4
A16: 11A1
A17: 11APP1
A18: 11G1
A19: 11G2
A20: 11G3
A21: 11G4
A22: 12G1
A23: 12G2
A24: 12G3
A25: 12G4
A26: 12G5
A27: 12A1
A28: 12A2

Sheet Purcent
A2: أسماء الحاصلون على 90% فأكثر لجميع الصفوف
A4: م | B4: الاسم | C4: الصف | D4: المعدل

Sheet first
A1: قطاع العمليات المدرسية
B6: أسماء العشرة الأوائل لامتحانات جميع الصفوف - الفصل الدراسي الأول 2019 - 2020 م
B8: الصــــــف | C8: 11A1 | F8: الصــــــف | G8: 9G5
A10: الترتيب | B10: أســــــم الطــــــــــــالب | C10: المجموع | E10: الترتيب | F10: أســــــم الطــــــــــــالب | G10: المجموع
A11: 1 | B11: الاسم 89 | C11: 657.59 | E11: 1 | F11: الاسم 283 | G11: 552.95
A12: 2 | B12: الاسم 92 | C12: 611.37 | E12: 2 | F12: الاسم 276 | G12: 480.06
A13: 3 | B13: الاسم 107 | C13: 587.7 | E13: 3 | F13: الاسم 292 | G13: 473.02
A14: 4 | B14: الاسم 93 | C14: 579.12 | E14: 4 | F14: الاسم 287 | G14: 456.02
A15: 5 | B15: الاسم 96 | C15: 578.46 | E15: 5 | F15: الاسم 273 | G15: 453.57
A16: 6 | B16: الاسم 110 | C16: 568.45 | E16: 6 | F16: الاسم 288 | G16: 453.49
A17: 7 | B17: الاسم 88 | C17: 562.15 | E17: 7 | F17: الاسم 282 | G17: 453.17
A18: 8 | B18: الاسم 104 | C18: 561.55 | E18: 8 | F18: الاسم 291 | G18: 449.74
A19: 9 | B19: الاسم 94 | C19: 561.05 | E19: 9 | F19: الاسم 293 | G19: 445.66
A20: 10 | B20: الاسم 86 | C20: 561 | E20: 10 | F20: الاسم 277 | G20: 445.58
B22: الصــــــف | C22: 9G1 | F22: الصــــــف | G22: 12A2
A24: الترتيب | B24: أســــــم الطــــــــــــالب | C24: المجموع | E24: الترتيب | F24: أســــــم الطــــــــــــالب | G24: المجموع
A25: 1 | B25: الاسم 185 | C25: 538.82 | E25: 1 | F25: الاسم 491 | G25: 621.43
A26: 2 | B26: الاسم 177 | C26: 523.99 | E26: 2 | F26: الاسم 475 | G26: 591
A27: 3 | B27: الاسم 190 | C27: 520.39 | E27: 3 | F27: الاسم 485 | G27: 573.15
A28: 4 | B28: الاسم 171 | C28: 512.5 | E28: 4 | F28: الاسم 487 | G28: 571.53
A29: 5 | B29: الاسم 167 | C29: 508.57 | E29: 5 | F29: الاسم 482 | G29: 571.27
A30: 6 | B30: الاسم 172 | C30: 500.82 | E30: 6 | F30: الاسم 480 | G30: 569.97
A31: 7 | B31: الاسم 169 | C31: 499.33 | E31: 7 | F31: الاسم 490 | G31: 566.34
A32: 8 | B32: الاسم 184 | C32: 496.28 | E32: 8 | F32: الاسم 483 | G32: 560.82
A33: 9 | B33: الاسم 182 | C33: 495.16 | E33: 9 | F33: الاسم 486 | G33: 559.7
A34: 10 | B34: الاسم 186 | C34: 492.68 | E34: 10 | F34: الاسم 481 | G34: 558.55
B36: الصــــــف | C36: 12A2 | F36: الصــــــف | G36: 12G5
A38: الترتيب | B38: أســــــم الطــــــــــــالب | C38: المجموع | E38: الترتيب | F38: أســــــم الطــــــــــــالب | G38: المجموع
A39: 1 | B39: الاسم 491 | C39: 621.43 | E39: 1 | F39: الاسم 587 | G39: 548.2
A40: 2 | B40: الاسم 475 | C40: 591 | E40: 2 | F40: الاسم 588 | G40: 533.11
A41: 3 | B41: الاسم 485 | C41: 573.15 | E41: 3 | F41: الاسم 584 | G41: 532.26
A42: 4 | B42: الاسم 487 | C42: 571.53 | E42: 4 | F42: الاسم 591 | G42: 530.93
A43: 5 | B43: الاسم 482 | C43: 571.27 | E43: 5 | F43: الاسم 574 | G43: 524.98
A44: 6 | B44: الاسم 480 | C44: 569.97 | E44: 6 | F44: الاسم 579 | G44: 523.95
A45: 7 | B45: الاسم 490 | C45: 566.34 | E45: 7 | F45: الاسم 577 | G45: 518.53
A46: 8 | B46: الاسم 483 | C46: 560.82 | E46: 8 | F46: الاسم 583 | G46: 513.34
A47: 9 | B47: الاسم 486 | C47: 559.7 | E47: 9 | F47: الاسم 595 | G47: 510.85
A48: 10 | B48: الاسم 481 | C48: 558.55 | E48: 10 | F48: الاسم 581 | G48: 505.43

Sheet B (hidden)
B6: المادة | C6: اللغة الإنجليزية | F6: الصف | J6: 12G5 | Q6: اختر الصف والمادة ثم اضغط Run
A8: تحليل نتائــــــــــــــــج الفصل الدراســـــــــي / الأول الفروق بين درجة الامتحان والتقويم
H9: للعـــــــــــــــام الدراســـــــــــــــــــــي 2019 / 2020 م
A10: م | B10: اســـــــــــــــــم الطـــــــــــــالب | C10: درجــة التقويم | D10: درجة الامتحان | E10: درجة الفصل | F10: الرتبة
H11: متميز | I11: جيد جداً | J11: جيد | K11: متوسط | L11: راسب | M11: ناجح | N11: نسبة النجاح
A12: 1 | B12: الاسم 574 | C12: 75.5 | D12: 87.25 | E12: 85.42 | F12: 2 | H12: =COUNTIF(C12:C46,">=90") -> 4 | I12: =COUNTIF(C12:C46,">=80")-H12 -> 5 | J12: =COUNTIF(C12:C46,">=70")-H12-I12 -> 7 | K12: =COUNTIF(C12:C46,">=60")-H12-I12-J12 -> 1 | L12: =COUNTIF(C12:C46,"<60") -> 9 | M12: =COUNTIF(C12:C46,">=50") -> 17 | N12: =(M12/SUM(H12:L12)) -> 0.6538461538 | O12: درجة التقويم | AC12: =(IF(AND(E12>=0,E12<50),1,"")) ->  | AD12: =IF(AC12=1,COUNT($AC$12:AC12),"") ->  | AE12: =IF(AF12="","",COUNTA($AF$12:AF12)) -> 1 | AF12: =IF(ROW()-11>MAX(AD$12:AD$41),"",LOOKUP(ROW()-11,AD$12:AD$41,B$12:B$41)) -> الاسم 578 | AG12: =IF(ROW()-11>MAX(AD$12:AD$41),"",LOOKUP(ROW()-11,AD$12:AD$46,E$12:E$41)) -> 39.44 | AH12: =(IF(AND(L12>=0,L12<=100),1,"")) -> 1 | AI12: =IF(AH12=1,COUNT($AH$12:AH12),"") -> 1 | AJ12: =IF(AK12="","",COUNTA($AK$12:AK12)) -> 1 | AK12: =IF(ROW()-11>MAX(AI$12:AI$41),"",LOOKUP(ROW()-11,AI$12:AI$41,B$15:B$46)) -> الاسم 577 | AL12: =IF(ROW()-11>MAX(AI$12:AI$41),"",LOOKUP(ROW()-11,AI$12:AI$46,E$12:E$41)) -> 85.42
A13: 2 | B13: الاسم 575 | C13: 26 | D13: 69 | E13: 72.12 | F13: 17 | H13: =COUNTIF(D12:D46,">=90") -> 0 | I13: =COUNTIF(D12:D46,">=80")-H13 -> 4 | J13: =COUNTIF(D12:D46,">=70")-H13-I13 -> 11 | K13: =COUNTIF(C12:C46,">=60")-H13-I13-J13 -> 2 | L13: =COUNTIF(D12:D46,"<60") -> 7 | M13: =COUNTIF(D12:D46,">=50") -> 22 | N13: =(M13/SUM(H13:L13)) -> 0.9166666667 | O13: درجةالامتحان | AD13: =IF(AC13=1,COUNT($AC$12:AC13),"") ->  | AE13: =IF(AF13="","",COUNTA($AF$12:AF13)) -> 2 | AF13: =IF(ROW()-11>MAX(AD$12:AD$41),"",LOOKUP(ROW()-11,AD$12:AD$41,B$12:B$41)) -> الاسم 586 | AG13: =IF(ROW()-11>MAX(AD$12:AD$41),"",LOOKUP(ROW()-11,AD$12:AD$46,E$12:E$41)) -> 35.14 | AH13: 1 | AI13: =IF(AH13=1,COUNT($AH$12:AH13),"") -> 2 | AJ13: =IF(AK13="","",COUNTA($AK$12:AK13)) -> 2 | AK13: =IF(ROW()-11>MAX(AI$12:AI$41),"",LOOKUP(ROW()-11,AI$12:AI$41,B$15:B$46)) -> الاسم 578 | AL13: =IF(ROW()-11>MAX(AI$12:AI$41),"",LOOKUP(ROW()-11,AI$12:AI$46,E$12:E$41)) -> 72.12
A14: 3 | B14: الاسم 576 | C14: 24 | D14: 56.25 | E14: 66.39 | F14: 23 | H14: =COUNTIF(E12:E46,">=90") -> 0 | I14: =COUNTIF(E12:E46,">=80")-H14 -> 6 | J14: =COUNTIF(E12:E46,">=70")-H14-I14 -> 14 | K14: =COUNTIF(C12:C46,">=60")-H14-I14-J14 -> -3 | L14: =COUNTIF(E12:E46,"<60") -> 2 | M14: =COUNTIF(E12:E46,">=50") -> 24 | N14: =(M14/SUM(H14:L14)) -> 1.263157895 | O14: درجة الفصل | AD14: =IF(AC14=1,COUNT($AC$12:AC14),"") ->  | AE14: =IF(AF14="","",COUNTA($AF$12:AF14)) -> 3 | AF14: 0 | AG14: 0 | AH14: 1 | AI14: =IF(AH14=1,COUNT($AH$12:AH14),"") -> 3 | AJ14: =IF(AK14="","",COUNTA($AK$12:AK14)) -> 3 | AK14: الاسم 579 | AL14: 66.39
A15: 4 | B15: الاسم 577 | C15: 74.5 | D15: 39.25 | E15: 64.95 | F15: 24 | AD15: =IF(AC15=1,COUNT($AC$12:AC15),"") ->  | AE15: =IF(AF15="","",COUNTA($AF$12:AF15)) -> 4 | AF15: 0 | AG15: 0 | AH15: 1 | AI15: =IF(AH15=1,COUNT($AH$12:AH15),"") -> 4 | AJ15: =IF(AK15="","",COUNTA($AK$12:AK15)) -> 4 | AK15: الاسم 580 | AL15: 64.95
A16: 5 | B16: الاسم 578 | C16: 69 | D16: 31 | E16: 39.44 | F16: 25 | AC16: 1 | AD16: =IF(AC16=1,COUNT($AC$12:AC16),"") -> 1 | AE16: =IF(AF16="","",COUNTA($AF$12:AF16)) -> 5 | AF16: 0 | AG16: 0 | AH16: 1 | AI16: =IF(AH16=1,COUNT($AH$12:AH16),"") -> 5 | AJ16: =IF(AK16="","",COUNTA($AK$12:AK16)) -> 5 | AK16: الاسم 581 | AL16: 39.44
A17: 6 | B17: الاسم 579 | C17: 22 | D17: 70.75 | E17: 72.31 | F17: 16 | AD17: =IF(AC17=1,COUNT($AC$12:AC17),"") ->  | AE17: =IF(AF17="","",COUNTA($AF$12:AF17)) -> 6 | AF17: 0 | AG17: 0 | AH17: 1 | AI17: =IF(AH17=1,COUNT($AH$12:AH17),"") -> 6 | AJ17: =IF(AK17="","",COUNTA($AK$12:AK17)) -> 6 | AK17: الاسم 582 | AL17: 72.31
A18: 7 | B18: الاسم 580 | C18: 81 | D18: 42.25 | E18: 67.68 | F18: 22 | AD18: =IF(AC18=1,COUNT($AC$12:AC18),"") ->  | AE18: =IF(AF18="","",COUNTA($AF$12:AF18)) ->  | AH18: 1 | AI18: =IF(AH18=1,COUNT($AH$12:AH18),"") -> 7 | AJ18: =IF(AK18="","",COUNTA($AK$12:AK18)) -> 7 | AK18: الاسم 583 | AL18: 67.68
A19: 8 | B19: الاسم 581 | C19: 86.5 | D19: 81.75 | E19: 83.54 | F19: 3 | AD19: =IF(AC19=1,COUNT($AC$12:AC19),"") ->  | AE19: =IF(AF19="","",COUNTA($AF$12:AF19)) ->  | AH19: 1 | AI19: =IF(AH19=1,COUNT($AH$12:AH19),"") -> 8 | AJ19: =IF(AK19="","",COUNTA($AK$12:AK19)) -> 8 | AK19: الاسم 584 | AL19: 83.54
A20: 9 | B20: الاسم 582 | C20: 25.5 | D20: 67.75 | E20: 71.69 | F20: 18 | AD20: =IF(AC20=1,COUNT($AC$12:AC20),"") ->  | AE20: =IF(AF20="","",COUNTA($AF$12:AF20)) ->  | AH20: 1 | AI20: =IF(AH20=1,COUNT($AH$12:AH20),"") -> 9 | AJ20: =IF(AK20="","",COUNTA($AK$12:AK20)) -> 9 | AK20: الاسم 585 | AL20: 71.69
A21: 10 | B21: الاسم 583 | C21: 82 | D21: 75 | E21: 78.88 | F21: 8 | AD21: =IF(AC21=1,COUNT($AC$12:AC21),"") ->  | AE21: =IF(AF21="","",COUNTA($AF$12:AF21)) ->  | AH21: 1 | AI21: =IF(AH21=1,COUNT($AH$12:AH21),"") -> 10 | AJ21: =IF(AK21="","",COUNTA($AK$12:AK21)) -> 10 | AK21: الاسم 586 | AL21: 78.88
A22: 11 | B22: الاسم 584 | C22: 91 | D22: 70 | E22: 78.13 | F22: 10 | AD22: =IF(AC22=1,COUNT($AC$12:AC22),"") ->  | AE22: =IF(AF22="","",COUNTA($AF$12:AF22)) ->  | AH22: 1 | AI22: =IF(AH22=1,COUNT($AH$12:AH22),"") -> 11 | AJ22: =IF(AK22="","",COUNTA($AK$12:AK22)) -> 11 | AK22: الاسم 587 | AL22: 78.13
A23: 12 | B23: الاسم 585 | C23: 25 | D23: 74.5 | E23: 73.72 | F23: 14 | AD23: =IF(AC23=1,COUNT($AC$12:AC23),"") ->  | AE23: =IF(AF23="","",COUNTA($AF$12:AF23)) ->  | AH23: 1 | AI23: =IF(AH23=1,COUNT($AH$12:AH23),"") -> 12 | AJ23: =IF(AK23="","",COUNTA($AK$12:AK23)) -> 12 | AK23: الاسم 588 | AL23: 73.72
A24: 13 | B24: الاسم 586 | C24: 26 | D24: 37.75 | E24: 35.14 | F24: 26 | AC24: 1 | AD24: =IF(AC24=1,COUNT($AC$12:AC24),"") -> 2 | AE24: =IF(AF24="","",COUNTA($AF$12:AF24)) ->  | AH24: 1 | AI24: =IF(AH24=1,COUNT($AH$12:AH24),"") -> 13 | AJ24: =IF(AK24="","",COUNTA($AK$12:AK24)) -> 13 | AK24: الاسم 589 | AL24: 35.14
A25: 14 | B25: الاسم 587 | C25: 82 | D25: 81.75 | E25: 82.51 | F25: 4 | AD25: =IF(AC25=1,COUNT($AC$12:AC25),"") ->  | AE25: =IF(AF25="","",COUNTA($AF$12:AF25)) ->  | AH25: 1 | AI25: =IF(AH25=1,COUNT($AH$12:AH25),"") -> 14 | AJ25: =IF(AK25="","",COUNTA($AK$12:AK25)) -> 14 | AK25: الاسم 590 | AL25: 82.51
A26: 15 | B26: الاسم 588 | C26: 82 | D26: 79 | E26: 80.3 | F26: 6 | AD26: =IF(AC26=1,COUNT($AC$12:AC26),"") ->  | AE26: =IF(AF26="","",COUNTA($AF$12:AF26)) ->  | AH26: 1 | AI26: =IF(AH26=1,COUNT($AH$12:AH26),"") -> 15 | AJ26: =IF(AK26="","",COUNTA($AK$12:AK26)) -> 15 | AK26: الاسم 591 | AL26: 80.3
A27: 16 | B27: الاسم 589 | C27: 75.5 | D27: 50.75 | E27: 70.86 | F27: 20 | AD27: =IF(AC27=1,COUNT($AC$12:AC27),"") ->  | AE27: =IF(AF27="","",COUNTA($AF$12:AF27)) ->  | AH27: 1 | AI27: =IF(AH27=1,COUNT($AH$12:AH27),"") -> 16 | AJ27: =IF(AK27="","",COUNTA($AK$12:AK27)) -> 16 | AK27: الاسم 592 | AL27: 70.86
A28: 17 | B28: الاسم 590 | C28: 26 | D28: 77.25 | E28: 74.65 | F28: 13 | AD28: =IF(AC28=1,COUNT($AC$12:AC28),"") ->  | AE28: =IF(AF28="","",COUNTA($AF$12:AF28)) ->  | AH28: 1 | AI28: =IF(AH28=1,COUNT($AH$12:AH28),"") -> 17 | AJ28: =IF(AK28="","",COUNTA($AK$12:AK28)) -> 17 | AK28: الاسم 593 | AL28: 74.65
A29: 18 | B29: الاسم 591 | C29: 75.5 | D29: 76.25 | E29: 78.69 | F29: 9 | AD29: =IF(AC29=1,COUNT($AC$12:AC29),"") ->  | AE29: =IF(AF29="","",COUNTA($AF$12:AF29)) ->  | AH29: 1 | AI29: =IF(AH29=1,COUNT($AH$12:AH29),"") -> 18 | AJ29: =IF(AK29="","",COUNTA($AK$12:AK29)) -> 18 | AK29: الاسم 594 | AL29: 78.69
A30: 19 | B30: الاسم 592 | C30: 90 | D30: 73.5 | E30: 79.12 | F30: 7 | AD30: =IF(AC30=1,COUNT($AC$12:AC30),"") ->  | AE30: =IF(AF30="","",COUNTA($AF$12:AF30)) ->  | AH30: 1 | AI30: =IF(AH30=1,COUNT($AH$12:AH30),"") -> 19 | AJ30: =IF(AK30="","",COUNTA($AK$12:AK30)) -> 19 | AK30: الاسم 595 | AL30: 79.12
A31: 20 | B31: الاسم 593 | C31: 95.5 | D31: 75.5 | E31: 80.58 | F31: 5 | AD31: =IF(AC31=1,COUNT($AC$12:AC31),"") ->  | AE31: =IF(AF31="","",COUNTA($AF$12:AF31)) ->  | AH31: 1 | AI31: =IF(AH31=1,COUNT($AH$12:AH31),"") -> 20 | AJ31: =IF(AK31="","",COUNTA($AK$12:AK31)) -> 20 | AK31: الاسم 596 | AL31: 80.58
A32: 21 | B32: الاسم 594 | C32: 24 | D32: 61.75 | E32: 69.48 | F32: 21 | AD32: =IF(AC32=1,COUNT($AC$12:AC32),"") ->  | AE32: =IF(AF32="","",COUNTA($AF$12:AF32)) ->  | AH32: 1 | AI32: =IF(AH32=1,COUNT($AH$12:AH32),"") -> 21 | AJ32: =IF(AK32="","",COUNTA($AK$12:AK32)) -> 21 | AK32: الاسم 597 | AL32: 69.48
A33: 22 | B33: الاسم 595 | C33: 76.5 | D33: 65.25 | E33: 75.4 | F33: 12 | AD33: =IF(AC33=1,COUNT($AC$12:AC33),"") ->  | AE33: =IF(AF33="","",COUNTA($AF$12:AF33)) ->  | AH33: 1 | AI33: =IF(AH33=1,COUNT($AH$12:AH33),"") -> 22 | AJ33: =IF(AK33="","",COUNTA($AK$12:AK33)) -> 22 | AK33: الاسم 598 | AL33: 75.4
A34: 23 | B34: الاسم 596 | C34: 95.5 | D34: 81.75 | E34: 85.6 | F34: 1 | AD34: =IF(AC34=1,COUNT($AC$12:AC34),"") ->  | AE34: =IF(AF34="","",COUNTA($AF$12:AF34)) ->  | AH34: 1 | AI34: =IF(AH34=1,COUNT($AH$12:AH34),"") -> 23 | AJ34: =IF(AK34="","",COUNTA($AK$12:AK34)) -> 23 | AK34: الاسم 599 | AL34: 85.6
A35: 24 | B35: الاسم 597 | C35: 26 | D35: 70.5 | E35: 72.58 | F35: 15 | AD35: =IF(AC35=1,COUNT($AC$12:AC35),"") ->  | AE35: =IF(AF35="","",COUNTA($AF$12:AF35)) ->  | AH35: 1 | AI35: =IF(AH35=1,COUNT($AH$12:AH35),"") -> 24 | AJ35: =IF(AK35="","",COUNTA($AK$12:AK35)) -> 24 | AK35: 0 | AL35: 72.58
A36: 25 | B36: الاسم 598 | C36: 75.5 | D36: 51.5 | E36: 71.09 | F36: 19 | AD36: =IF(AC36=1,COUNT($AC$12:AC36),"") ->  | AE36: =IF(AF36="","",COUNTA($AF$12:AF36)) ->  | AH36: 1 | AI36: =IF(AH36=1,COUNT($AH$12:AH36),"") -> 25 | AJ36: =IF(AK36="","",COUNTA($AK$12:AK36)) -> 25 | AK36: 0 | AL36: 71.09
A37: 26 | B37: الاسم 599 | C37: 77.5 | D37: 70 | E37: 76.95 | F37: 11 | AC37: =(IF(AND(E37>=0,E37<50),1,"")) ->  | AD37: =IF(AC37=1,COUNT($AC$12:AC37),"") ->  | AE37: =IF(AF37="","",COUNTA($AF$12:AF37)) ->  | AF37: =IF(ROW()-11>MAX(AD$12:AD$41),"",LOOKUP(ROW()-11,AD$12:AD$41,B$12:B$41)) ->  | AG37: =IF(ROW()-11>MAX(AD$12:AD$41),"",LOOKUP(ROW()-11,AD$12:AD$46,E$12:E$41)) ->  | AH37: =(IF(AND(L37>=0,L37<=100),1,"")) -> 1 | AI37: =IF(AH37=1,COUNT($AH$12:AH37),"") -> 26 | AJ37: =IF(AK37="","",COUNTA($AK$12:AK37)) -> 26 | AK37: =IF(ROW()-11>MAX(AI$12:AI$41),"",LOOKUP(ROW()-11,AI$12:AI$41,B$15:B$46)) -> 0 | AL37: =IF(ROW()-11>MAX(AI$12:AI$41),"",LOOKUP(ROW()-11,AI$12:AI$46,E$12:E$41)) -> 76.95
AC38: 1 | AD38: =IF(AC38=1,COUNT($AC$12:AC38),"") -> 3 | AE38: =IF(AF38="","",COUNTA($AF$12:AF38)) ->  | AH38: 1 | AI38: =IF(AH38=1,COUNT($AH$12:AH38),"") -> 27 | AJ38: =IF(AK38="","",COUNTA($AK$12:AK38)) -> 27 | AK38: 0 | AL38: 0
AC39: 1 | AD39: =IF(AC39=1,COUNT($AC$12:AC39),"") -> 4 | AE39: =IF(AF39="","",COUNTA($AF$12:AF39)) ->  | AH39: 1 | AI39: =IF(AH39=1,COUNT($AH$12:AH39),"") -> 28 | AJ39: =IF(AK39="","",COUNTA($AK$12:AK39)) -> 28 | AK39: 0 | AL39: 0
AC40: 1 | AD40: =IF(AC40=1,COUNT($AC$12:AC40),"") -> 5 | AE40: =IF(AF40="","",COUNTA($AF$12:AF40)) ->  | AH40: 1 | AI40: =IF(AH40=1,COUNT($AH$12:AH40),"") -> 29 | AJ40: =IF(AK40="","",COUNTA($AK$12:AK40)) -> 29 | AK40: 0 | AL40: 0
AC41: 1 | AD41: =IF(AC41=1,COUNT($AC$12:AC41),"") -> 6 | AE41: =IF(AF41="","",COUNTA($AF$12:AF41)) ->  | AH41: 1 | AI41: =IF(AH41=1,COUNT($AH$12:AH41),"") -> 30 | AJ41: =IF(AK41="","",COUNTA($AK$12:AK41)) -> 30 | AK41: 0 | AL41: 0
AC42: 1 | AD42: =IF(AC42=1,COUNT($AC$12:AC42),"") -> 7 | AE42: =IF(AF42="","",COUNTA($AF$12:AF42)) ->  | AH42: 1 | AI42: =IF(AH42=1,COUNT($AH$12:AH42),"") -> 31 | AJ42: =IF(AK42="","",COUNTA($AK$12:AK42)) -> 
AC43: 1 | AD43: =IF(AC43=1,COUNT($AC$12:AC43),"") -> 8 | AE43: =IF(AF43="","",COUNTA($AF$12:AF43)) ->  | AH43: 1 | AI43: =IF(AH43=1,COUNT($AH$12:AH43),"") -> 32 | AJ43: =IF(AK43="","",COUNTA($AK$12:AK43)) -> 
AC44: 1 | AD44: =IF(AC44=1,COUNT($AC$12:AC44),"") -> 9 | AE44: =IF(AF44="","",COUNTA($AF$12:AF44)) ->  | AH44: 1 | AI44: =IF(AH44=1,COUNT($AH$12:AH44),"") -> 33 | AJ44: =IF(AK44="","",COUNTA($AK$12:AK44)) -> 
AC45: 1 | AD45: =IF(AC45=1,COUNT($AC$12:AC45),"") -> 10 | AE45: =IF(AF45="","",COUNTA($AF$12:AF45)) ->  | AH45: 1 | AI45: =IF(AH45=1,COUNT($AH$12:AH45),"") -> 34 | AJ45: =IF(AK45="","",COUNTA($AK$12:AK45)) -> 

Sheet ALL_STD
A1: الصف | B1: اسم الطالب | C1: التربية الإسلامية | F1: اللغة العربية | I1: اللغة الإنجليزية | L1: الرياضيات | O1: الكيمياء | R1: الفيزياء | U1: الأحياء | X1: العلوم | AA1: الدراسات الاجتماعية | AE1: معدل فصلي | AF1: المجموع
C2: التقويم | D2: الامتحان | E2: الفصل | F2: التقويم | G2: الامتحان | H2: الفصل | I2: التقويم | J2: الامتحان | K2: الفصل | L2: التقويم | M2: الامتحان | N2: الفصل | O2: التقويم | P2: الامتحان | Q2: الفصل | R2: التقويم | S2: الامتحان | T2: الفصل | U2: التقويم | V2: الامتحان | W2: الفصل | X2: التقويم | Y2: الامتحان | Z2: الفصل | AA2: التقويم | AB2: الامتحان | AC2: الفصل
A3: 11G2 | B3: الاسم 1 | C3: 4 | D3: 39 | E3: 61.62 | F3: 24 | G3: 49 | H3: 47.35 | I3: 14 | J3: 42.25 | K3: 38.66 | L3: 55 | M3: 18 | N3: 62.94 | O3: 85 | P3: 39 | Q3: 71.9 | R3: 63 | S3: 39 | T3: 71.57 | AA3: 40 | AB3: 54 | AC3: 65.11 | AD3: 96.67 | AE3: 63.16 | AF3: 600 | AI3: =CEILING(AF3*0.9,1) -> 540 | AK3: =AE3/AF3 -> 0.1052666667
A4: 11G2 | B4: الاسم 2 | C4: 46 | D4: 47 | E4: 73.38 | F4: 60 | G4: 51 | H4: 66.87 | I4: 80 | J4: 44.5 | K4: 70.39 | L4: 50 | M4: 28 | N4: 70 | O4: 68 | P4: 42 | Q4: 71.29 | R4: 61 | S4: 36 | T4: 70.51 | AA4: 70 | AB4: 57 | AC4: 70.92 | AD4: 98 | AE4: 70.31 | AF4: =SUM(E4,H4,K4,N4,Q4,T4,W4,Z4,AC4) -> 493.36 | AI4: =CEILING(AF4*0.9,1) -> 445
A5: 11G2 | B5: الاسم 3 | C5: 94 | D5: 35 | E5: 73.98 | F5: 98 | G5: 81 | H5: 91.7 | I5: 91.8 | J5: 46.75 | K5: 72.3 | L5: 94 | M5: 36 | N5: 75.92 | O5: 84 | P5: 51 | Q5: 75.8 | R5: 62 | S5: 28 | T5: 61.94 | AA5: 91 | AB5: 63 | AC5: 75.74 | AD5: 48.83 | AE5: 81.5 | AF5: 527.38 | AI5: 475
A6: 11G2 | B6: الاسم 4 | C6: 53 | D6: 46 | E6: 73.73 | F6: 79 | G6: 75 | H6: 82.24 | I6: 14 | J6: 44.5 | K6: 60.91 | L6: 60 | M6: 30 | N6: 71.4 | O6: 77 | P6: 37 | Q6: 70.48 | R6: 67 | S6: 28 | T6: 63.86 | AA6: 80 | AB6: 67 | AC6: 76.09 | AD6: 97.33 | AE6: 72.78 | AF6: 498.71 | AI6: 449
A7: 11G2 | B7: الاسم 5 | C7: 64 | D7: 54 | E7: 77.61 | F7: 71 | G7: 67 | H7: 76.32 | I7: 85 | J7: 31.75 | K7: 64.77 | L7: 84 | M7: 37 | N7: 75.39 | O7: 77 | P7: 36 | Q7: 70.14 | R7: 62 | S7: 30 | T7: 64.62 | AA7: 69 | AB7: 51 | AC7: 67.89 | AD7: 97.33 | AE7: 75.85 | AF7: 496.74 | AI7: 448
A8: 11G2 | B8: الاسم 6 | C8: 56 | D8: 41 | E8: 72.29 | F8: 70 | G8: 69 | H8: 77.09 | I8: 14 | J8: 57.25 | K8: 67.45 | L8: 60 | M8: 33 | N8: 72.26 | O8: 67 | P8: 38 | Q8: 69.62 | R8: 63 | S8: 25 | T8: 33.82 | AA8: 64 | AB8: 54 | AC8: 68.72 | AD8: 96.2 | AE8: 69.21 | AF8: 461.25 | AI8: 416
A9: 11G2 | B9: الاسم 7 | C9: 65 | D9: 45 | E9: 74.57 | F9: 64 | G9: 57 | H9: 70.91 | I9: 54.5 | J9: 55 | K9: 71.48 | L9: 72 | M9: 47 | N9: 77.28 | O9: 84 | P9: 41 | Q9: 72.48 | R9: 56 | S9: 29 | T9: 60.97 | AA9: 82 | AB9: 58 | AC9: 72.7 | AD9: 96.67 | AE9: 75.92 | AF9: 500.39 | AI9: =ROUND(AF9*0.9,2) -> 450.35
A10: 11G2 | B10: الاسم 8 | C10: 65 | D10: 45 | E10: 74.57 | F10: 88 | G10: 80 | H10: 90.06 | I10: 89 | J10: 49.5 | K10: 72.97 | L10: 66 | M10: 31 | N10: 72.18 | O10: 76 | P10: 44 | Q10: 72.71 | R10: 62 | S10: 26 | T10: 34.48 | AA10: 85 | AB10: 67 | AC10: 76.67 | AD10: 100 | AE10: 77 | AF10: 493.64 | AI10: 444.28
A11: 11G2 | B11: الاسم 9 | C11: 72 | D11: 53 | E11: 78.05 | F11: 78 | G11: 73 | H11: 79.93 | I11: 16 | J11: 29.5 | K11: 26.59 | L11: 70 | M11: 30 | N11: 72.22 | O11: 74 | P11: 43 | Q11: 72.19 | R11: 63 | S11: 23 | T11: 31.98 | AA11: 76 | AB11: 70 | AC11: 76.84 | AD11: 96.67 | AE11: 70.65 | AF11: 437.8 | AI11: 394.02
A12: 11G2 | B12: الاسم 10 | C12: 86 | D12: 36 | E12: 73.53 | F12: 80 | G12: 63 | H12: 75.68 | I12: 89 | J12: 35.75 | K12: 67.41 | L12: 78 | M12: 38 | N12: 75.18 | O12: 79 | P12: 66 | Q12: 80.59 | R12: 63 | S12: 51 | T12: 75.13 | AA12: 87 | AB12: 51 | AC12: 70.46 | AD12: 49.17 | AE12: 75.29 | AF12: 517.98 | AI12: 466.18
A13: 11G2 | B13: الاسم 11 | C13: 60 | D13: 31 | E13: 68.14 | F13: 60 | G13: 55 | H13: 69.3 | I13: 86 | J13: 37.25 | K13: 67.74 | L13: 60 | M13: 20 | N13: 65.77 | O13: 60 | P13: 36 | Q13: 66.17 | R13: 62 | S13: 41 | T13: 72.08 | AA13: 76 | AB13: 51 | AC13: 68.95 | AD13: 97.33 | AE13: 72.02 | AF13: 478.15
A14: 11G2 | B14: الاسم 12 | C14: 66 | D14: 40 | E14: 72.93 | F14: 87 | G14: 82 | H14: 90.79 | I14: 95.2 | J14: 29 | K14: 64.86 | L14: 76 | M14: 27 | N14: 71.85 | O14: 95 | P14: 34 | Q14: 71.19 | R14: 63 | S14: 33 | T14: 69.06 | AA14: 100 | AB14: 51 | AC14: 71.95 | AD14: 96.67 | AE14: 77.29 | AF14: 512.63
A15: 11G2 | B15: الاسم 13 | C15: 91 | D15: 61 | E15: 85.29 | F15: 97 | G15: 78 | H15: 90.3 | I15: 91.8 | J15: 44 | K15: 71.37 | L15: 98 | M15: 71 | N15: 91.72 | O15: 92 | P15: 77 | Q15: 89.24 | R15: 67 | S15: 51 | T15: 75.47 | AA15: 90 | AB15: 82 | AC15: 88.04 | AD15: 49.17 | AE15: 87.69 | AF15: 591.43
A16: 11G2 | B16: الاسم 14 | C16: 67 | D16: 46 | E16: 75.12 | F16: 90 | G16: 83 | H16: 91.58 | I16: 97.2 | J16: 60 | K16: 77.34 | L16: 92 | M16: 44 | N16: 78.06 | O16: 89 | P16: 49 | Q16: 75.62 | R16: 44 | S16: 29 | T16: 32.5 | AA16: 74 | AB16: 60 | AC16: 72.59 | AD16: 49.83 | AE16: 78.35 | AF16: 502.81
A17: 11G2 | B17: الاسم 15 | C17: 70 | D17: 45 | E17: 75.07 | F17: 95 | G17: 79 | H17: 90.49 | I17: 98.2 | J17: 57.75 | K17: 76.67 | L17: 93 | M17: 41 | N17: 77.28 | O17: 65 | P17: 60 | Q17: 77 | R17: 63 | S17: 31 | T17: 66.35 | AA17: 91 | AB17: 60 | AC17: 74.54 | AD17: 98 | AE17: 80.61 | AF17: 537.4
A18: 11G2 | B18: الاسم 16 | C18: 50 | D18: 44 | E18: 72.73 | F18: 73 | G18: 73 | H18: 79.29 | I18: 77 | J18: 57.75 | K18: 74.61 | L18: 60 | M18: 28 | N18: 70.82 | O18: 77 | P18: 49 | Q18: 74.47 | R18: 62 | S18: 29 | T18: 63.27 | AA18: 73 | AB18: 69 | AC18: 76.09 | AD18: 49.83 | AE18: 79.29 | AF18: 511.28
A19: 11G2 | B19: الاسم 17 | C19: 67 | D19: 46 | E19: 75.12 | F19: 80 | G19: 74 | H19: 81.49 | I19: 90.8 | J19: 40 | K19: 69.86 | L19: 88 | M19: 44 | N19: 77.73 | O19: 81 | P19: 50 | Q19: 75.19 | R19: 62 | S19: 23 | T19: 31.72 | AA19: 77 | AB19: 63 | AC19: 74.14 | AD19: 84.8 | AE19: 74.92 | AF19: 485.25
A20: 11G2 | B20: الاسم 18 | C20: 70 | D20: 54 | E20: 78.2 | F20: 93 | G20: 83 | H20: 91.94 | I20: 95.2 | J20: 45 | K20: 72.04 | L20: 88 | M20: 30 | N20: 73.7 | O20: 79 | P20: 37 | Q20: 70.66 | R20: 62 | S20: 25 | T20: 33.56 | AA20: 93 | AB20: 67 | AC20: 77.59 | AD20: 98.33 | AE20: 78.34 | AF20: 497.69
A21: 11G2 | B21: الاسم 19 | C21: 60 | D21: 35 | E21: 70.6 | F21: 70 | G21: 67 | H21: 76.19 | I21: 13 | J21: 44.5 | K21: 60.76 | L21: 60 | M21: 30 | N21: 71.4 | O21: 70 | P21: 45 | Q21: 72.48 | R21: 63 | S21: 43 | T21: 72.75 | AA21: 79 | AB21: 63 | AC21: 74.37 | AD21: 41.57 | AE21: 72.71 | AF21: 498.55
A22: 11G2 | B22: الاسم 20 | C22: 72 | D22: 48 | E22: 76.31 | F22: 79 | G22: 72 | H22: 79.61 | I22: 88 | J22: 51 | K22: 73.38 | L22: 70 | M22: 12 | N22: 61.53 | O22: 73 | P22: 39 | Q22: 70.76 | R22: 69 | S22: 33 | T22: 70.3 | AA22: 83 | AB22: 57 | AC22: 72.41 | AD22: 1 | AE22: 74.52 | AF22: 504.3
A23: 11G2 | B23: الاسم 21 | C23: 62 | D23: 47 | E23: 74.97 | F23: 79 | G23: 80 | H23: 87.47 | I23: 60 | J23: 46.75 | K23: 68.8 | L23: 70 | M23: 42 | N23: 75.67 | O23: 76 | P23: 43 | Q23: 72.38 | R23: 63 | S23: 28 | T23: 62.32 | AA23: 91 | AB23: 54 | AC23: 72.13 | AD23: 98.33 | AE23: 76.91 | AF23: 513.74
A24: 11G2 | B24: الاسم 22 | C24: 68 | D24: 44 | E24: 74.52 | F24: 77 | G24: 58 | H24: 73.03 | I24: 87.8 | J24: 37.75 | K24: 68.26 | L24: 84 | M24: 33 | N24: 74.23 | O24: 64 | P24: 41 | Q24: 70.57 | R24: 62 | S24: 28 | T24: 61.94 | AA24: 81 | AB24: 58 | AC24: 72.59 | AD24: 98.33 | AE24: 75.53 | AF24: 495.14
A25: 11G2 | B25: الاسم 23 | C25: 82 | D25: 40 | E25: 74.52 | F25: 89 | G25: 64 | H25: 77.29 | I25: 14 | J25: 49 | K25: 63.22 | L25: 86 | M25: 21 | N25: 70.94 | O25: 68 | P25: 46 | Q25: 72.62 | R25: 62 | S25: 28 | T25: 61.94 | AA25: 65 | AB25: 63 | AC25: 72.76 | AD25: 99 | AE25: 77.66 | AF25: 493.29
A26: 11G2 | B26: الاسم 24 | C26: 36 | D26: 33 | E26: 64.19 | F26: 60 | G26: 49 | H26: 65.65 | I26: 14 | J26: 27.5 | K26: 24.63 | L26: 60 | M26: 24 | N26: 69.06 | O26: 63 | P26: 41 | Q26: 70.48 | R26: 63 | S26: 29 | T26: 63.67 | AA26: 67 | AB26: 18 | AC26: 60 | AD26: 98.33 | AE26: 90 | AF26: 417.68
A27: 11G2 | B27: الاسم 25 | C27: 60 | D27: 47 | E27: 74.77 | F27: 67 | G27: 59 | H27: 72.19 | I27: 14 | J27: 57.75 | K27: 67.71 | L27: 60 | M27: 24 | N27: 69.06 | O27: 75 | P27: 49 | Q27: 74.28 | R27: 62 | S27: 28 | T27: 61.94 | AA27: 76 | AB27: 54 | AC27: 70.4 | AD27: 97.33 | AE27: 70.77 | AF27: 490.35
A28: 11G2 | B28: الاسم 26 | C28: 67 | D28: 41 | E28: 73.38 | F28: 70 | G28: 45 | H28: 64.96 | I28: 80.6 | J28: 16.25 | K28: 30.57 | L28: 65 | M28: 15 | N28: 62.83 | O28: 83 | P28: 57 | Q28: 77.71 | R28: 73 | S28: 53 | T28: 76.56 | AA28: 64 | AB28: 73 | AC28: 76.67 | AE28: 75.41 | AF28: 462.68
A29: 11G2 | B29: الاسم 27 | C29: 61 | D29: 54 | E29: 77.31 | F29: 89 | G29: 79 | H29: 89.4 | I29: 80.6 | J29: 34 | K29: 65.29 | L29: 60 | M29: 21 | N29: 66.59 | O29: 80 | P29: 38 | Q29: 71.09 | R29: 63 | S29: 36 | T29: 70.68 | AA29: 98 | AB29: 56 | AC29: 73.73 | AE29: 73.07 | AF29: 514.09
A30: 11G2 | B30: الاسم 28 | C30: 67 | D30: 63 | E30: 82.02 | F30: 84 | G30: 66 | H30: 77.55 | I30: 85 | J30: 49.5 | K30: 72.58 | L30: 93 | M30: 34 | N30: 75.26 | O30: 71 | P30: 71 | Q30: 82.19 | R30: 66 | S30: 45 | T30: 73.6 | AA30: 83 | AB30: 82 | AC30: 86.06 | AE30: 79.97 | AF30: 549.26
A31: 11G4 | B31: الاسم 29 | C31: 80 | D31: 63 | E31: 84.52 | F31: 90 | G31: 70 | H31: 80.3 | I31: 99 | J31: 77.75 | K31: 88.3 | L31: 60 | M31: 50 | N31: 77.15 | O31: 82 | P31: 60 | Q31: 78.61 | R31: 67 | S31: 42 | T31: 72.8 | AA31: 83 | AB31: 73 | AC31: 78.85 | AE31: 81.84 | AF31: 560.53
A32: 11G4 | B32: الاسم 30 | C32: 42 | D32: 52 | E32: 74.72 | F32: 60 | G32: 55 | H32: 69.3 | I32: 51 | J32: 69.5 | K32: 76.08 | L32: 60 | M32: 24 | N32: 69.06 | O32: 63 | P32: 42 | Q32: 70.81 | R32: 62 | S32: 38 | T32: 71.19 | AA32: 62 | AB32: 54 | AC32: 68.42 | AE32: 75.67 | AF32: 499.58
A33: 11G4 | B33: الاسم 31 | C33: 60 | D33: 56 | E33: 77.91 | F33: 63 | G33: 66 | H33: 74.84 | I33: 77 | J33: 70.5 | K33: 78.95 | L33: 48 | M33: 51 | N33: 76.46 | O33: 71 | P33: 54 | Q33: 75.57 | R33: 29 | S33: 20 | T33: 22 | AA33: 75 | AB33: 68 | AC33: 75.92 | AE33: 70.11 | AF33: 481.65
A34: 11G4 | B34: الاسم 32 | C34: 50 | D34: 58 | E34: 77.61 | F34: 70 | G34: 66 | H34: 75.74 | I34: 80.5 | J34: 50.75 | K34: 72.57 | L34: 60 | M34: 50 | N34: 77.15 | O34: 77 | P34: 47 | Q34: 73.81 | R34: 60 | S34: 39 | T34: 71.31 | AA34: 79 | AB34: 73 | AC34: 78.39 | AE34: 76.55 | AF34: 526.58
A35: 11G4 | B35: الاسم 33 | C35: 76 | D35: 38 | E35: 73.23 | F35: 69 | G35: 57 | H35: 71.55 | I35: 78 | J35: 69.5 | K35: 78.71 | L35: 83 | M35: 60 | N35: 84.23 | O35: 80 | P35: 54 | Q35: 76.43 | R35: 65 | S35: 45 | T35: 73.51 | AA35: 72 | AB35: 64 | AC35: 73.97 | AE35: 81.37 | AF35: 531.63
A36: 11G4 | B36: الاسم 34 | C36: 72 | D36: 68 | E36: 86.35 | F36: 70 | G36: 70 | H36: 77.55 | I36: 81 | J36: 86.5 | K36: 90.72 | L36: 85 | M36: 60 | N36: 84.6 | O36: 71 | P36: 55 | Q36: 75.9 | R36: 78 | S36: 50 | T36: 76.1 | AA36: 94 | AB36: 73 | AC36: 80.29 | AE36: 82.1 | AF36: 571.51
A37: 11G4 | B37: الاسم 35 | C37: 60 | D37: 67 | E37: 83.36 | F37: 70 | G37: 69 | H37: 77.09 | I37: 81 | J37: 86.5 | K37: 90.72 | L37: 69 | M37: 45 | N37: 76.46 | O37: 69 | P37: 49 | Q37: 73.71 | R37: 62 | S37: 34 | T37: 70 | AA37: 78 | AB37: 73 | AC37: 78.27 | AE37: 82.22 | AF37: 549.61
A38: 11G4 | B38: الاسم 36 | C38: 73 | D38: 42 | E38: AE | F38: 71 | G38: 49 | H38: 67.56 | I38: 59 | J38: 64 | K38: 74.99 | L38: 46 | M38: 29 | N38: 69.88 | O38: 60 | P38: 45 | Q38: 71.52 | R38: 60 | S38: 23 | T38: 31.22 | AA38: 40 | AB38: 51 | AC38: 63.54 | AE38: 68.59 | AF38: 378.71
A39: 11G4 | B39: الاسم 37 | C39: 68 | D39: 52 | E39: 77.31 | F39: 78 | G39: 56 | H39: 72.26 | I39: 80 | J39: 72.75 | K39: 80.04 | L39: 60 | M39: 40 | N39: 74.28 | O39: 73 | P39: 48 | Q39: 73.76 | R39: 70 | S39: 38 | T39: 71.86 | AA39: 65 | AB39: 71 | AC39: 75.98 | AE39: 78.19 | AF39: 525.49
A40: 11G4 | B40: الاسم 38 | C40: 60 | D40: 25 | E40: 63.26 | F40: 62 | G40: 55 | H40: 69.65 | I40: 81.8 | J40: 40.5 | K40: 68.8 | L40: 71 | M40: 2 | N40: 17.39 | O40: 82 | P40: 51 | Q40: 75.62 | R40: 78 | S40: 32 | T40: 70.84 | AA40: 85 | AB40: 81 | AC40: 85.64 | AE40: 75.04000092 | AF40: 451.2
A41: 11G4 | B41: الاسم 39 | C41: 36 | D41: 56 | E41: 75.52 | F41: 50 | G41: 51 | H41: 65.13 | I41: 47 | J41: 59.5 | K41: 72.29 | L41: 50 | M41: 38 | N41: 72.88 | O41: 70 | P41: 60 | Q41: 77.47 | R41: 29 | S41: 22 | T41: 23.56 | AA41: 80 | AB41: 70 | AC41: 77.3 | AE41: 71.09 | AF41: 464.15
A42: 11G4 | B42: الاسم 40 | C42: 42 | D42: 43 | E42: 71.59 | F42: 66 | G42: 55 | H42: 70.26 | I42: 50 | J42: 69.5 | K42: 75.99 | L42: 62 | M42: 33 | N42: 72.42 | O42: 68 | P42: 45 | Q42: 72.28 | R42: 68 | S42: 42 | T42: 72.88 | AA42: 86 | AB42: 57 | AC42: 72.76 | AE42: 93 | AF42: 508.18
A43: 11G4 | B43: الاسم 41 | C43: 91 | D43: 52 | E43: 79.6 | F43: 94 | G43: 72 | H43: 83.59 | I43: 99 | J43: 80.5 | K43: 90.3 | L43: 89 | M43: 50 | N43: 79.54 | O43: 91 | P43: 66 | Q43: 82.61 | R43: 86 | S43: 61 | T43: 80.09 | AA43: 84 | AB43: 85 | AC43: 89.31 | AE43: 85.52 | AF43: 585.04
A44: 11G4 | B44: الاسم 42 | C44: 63 | D44: 55 | E44: 77.86 | F44: 69 | G44: 61 | H44: 73.36 | I44: 78 | J44: 61.75 | K44: 76.07 | L44: 60 | M44: 50 | N44: 77.15 | O44: 72 | P44: 52 | Q44: 75 | R44: 62 | S44: 38 | T44: 71.19 | AA44: 78 | AB44: 80 | AC44: 82.69 | AE44: 80.03 | AF44: 533.32
A45: 11G4 | B45: الاسم 43 | C45: 60 | D45: 43 | E45: 73.38 | F45: 74 | G45: 63 | H45: 74.9 | I45: 50 | J45: 61.75 | K45: 73.35 | L45: 60 | M45: 30 | N45: 71.4 | O45: 64 | P45: 49 | Q45: 73.23 | R45: 63 | S45: 33 | T45: 69.06 | AA45: 64 | AB45: 60 | AC45: 71.44 | AE45: 75.57 | AF45: 506.76
A46: 11G4 | B46: الاسم 44 | C46: 80 | D46: 45 | E46: 76.07 | F46: 75 | G46: 62 | H46: 74.58 | I46: 62 | J46: 77.25 | K46: 79.79 | L46: 72 | M46: 43 | N46: 76.13 | O46: 69 | P46: 60 | Q46: 77.38 | R46: 62 | S46: 38 | T46: 71.19 | AA46: 80 | AB46: 82 | AC46: 85.22 | AE46: 77.31 | AF46: 540.36
A47: 11G4 | B47: الاسم 45 | C47: 60 | D47: 45 | E47: 74.08 | F47: 85 | G47: 61 | H47: 75.42 | I47: 81 | J47: 88.75 | K47: 91.82 | L47: 72 | M47: 47 | N47: 77.28 | O47: 79 | P47: 60 | Q47: 78.33 | R47: 64 | S47: 47 | T47: 74.02 | AA47: 83 | AB47: 80 | AC47: 84.09 | AE47: 92 | AF47: 555.04
A48: 11G4 | B48: الاسم 46 | C48: 65 | D48: 45 | E48: 74.57 | F48: 75 | G48: 61 | H48: 74.13 | I48: 83 | J48: 69.5 | K48: 79.2 | L48: 60 | M48: 34 | N48: 72.55 | O48: 76 | P48: 54 | Q48: 76.04 | R48: 61 | S48: 43 | T48: 72.58 | AA48: 78 | AB48: 67 | AC48: 75.86 | AE48: 73.72 | AF48: 524.93
A49: 11G4 | B49: الاسم 47 | C49: 81 | D49: 64 | E49: 85.38 | F49: 90 | G49: 74 | H49: 84.48 | I49: 99.5 | J49: 69.5 | K49: 81.88 | L49: 86 | M49: 52 | N49: 79.87 | O49: 88 | P49: 64 | Q49: 80.92 | R49: 71 | S49: 40 | T49: 72.54 | AA49: 80 | AB49: 82 | AC49: 85.22 | AE49: 83.82 | AF49: 570.29
A50: 11G4 | B50: الاسم 48 | C50: 55 | D50: 45 | E50: 73.58 | F50: 68 | G50: 57 | H50: 71.42 | I50: 81 | J50: 69.5 | K50: 79 | L50: 78 | M50: 65 | N50: 86.49 | O50: 84 | P50: 47 | Q50: 74.47 | R50: 61 | S50: 46 | T50: 73.47 | AA50: 79 | AB50: 62 | AC50: 73.97 | AE50: 77.25 | AF50: 532.4
A51: 11G4 | B51: الاسم 49 | C51: 82 | D51: 64 | E51: 85.58 | F51: 88 | G51: 72 | H51: 81.8 | I51: 99 | J51: 86 | K51: 92.99 | L51: 88 | M51: 50 | N51: 79.46 | O51: 81 | P51: 69 | Q51: 82.69 | R51: 63 | S51: 45 | T51: 73.35 | AA51: 82 | AB51: 80 | AC51: 83.8 | AE51: 83.78 | AF51: 579.67
A52: 11G4 | B52: الاسم 50 | C52: 62 | D52: 51 | E52: 76.36 | F52: 81 | G52: 64 | H52: 76.26 | I52: 81 | J52: 72.75 | K52: 80.26 | L52: 62 | M52: 35 | N52: 73 | O52: 70 | P52: 54 | Q52: 75.47 | R52: 65 | S52: 37 | T52: 71.14 | AA52: 82 | AB52: 67 | AC52: 76.32 | AE52: 76.92 | AF52: 528.81
A53: 11G4 | B53: الاسم 51 | C53: 66 | D53: 58 | E53: 79.2 | F53: 86 | G53: 71 | H53: 80.15 | I53: 79 | J53: 75 | K53: 81.6 | L53: 62 | M53: 36 | N53: 73.29 | O53: 83 | P53: 60 | Q53: 78.71 | R53: 62 | S53: 46 | T53: 73.56 | AA53: 95 | AB53: 85 | AC53: 91.29 | AE53: 78.37 | AF53: 557.8
A54: 11G4 | B54: الاسم 52 | C54: 73 | D54: 58 | E54: 79.89 | F54: 93 | G54: 68 | H54: 79.61 | I54: 80 | J54: 59.5 | K54: 75.5 | L54: 79 | M54: 50 | N54: 78.72 | O54: 88 | P54: 43 | Q54: 73.52 | R54: 61 | S54: 28 | T54: 61.54 | AA54: 83 | AB54: 72 | AC54: 78.44 | AE54: 80.06 | AF54: 527.22
A55: 11G4 | B55: الاسم 53 | C55: 63 | D55: 61 | E55: 79.94 | F55: 88 | G55: 70 | H55: 79.87 | I55: 99 | J55: 75 | K55: 86.12 | L55: 60 | M55: 52 | N55: 77.73 | O55: 65 | P55: 52 | Q55: 74.33 | R55: 60 | S55: 40 | T55: 71.61 | AA55: 81 | AB55: 70 | AC55: 77.41 | AE55: 80.85 | AF55: 547.01
A56: 11G4 | B56: الاسم 54 | C56: 54 | D56: 42 | E56: 72.44 | F56: 60 | G56: 60 | H56: 71.74 | I56: 51 | J56: 59.5 | K56: 72.68 | L56: 31 | O56: 60 | P56: 42 | Q56: 70.52 | R56: 60 | S56: 36 | T56: 70.42 | AA56: 62 | AB56: 64 | AC56: 72.82 | AE56: 67.02 | AF56: 430.62
A57: 11G4 | B57: الاسم 55 | C57: 63 | D57: 50 | E57: 76.12 | F57: 90 | G57: 61 | H57: 76.06 | I57: 81 | J57: 75 | K57: 82.05 | L57: 67 | M57: 50 | N57: 77.73 | O57: 63 | P57: 48 | Q57: 72.81 | R57: 68 | S57: 38 | T57: 71.7 | AA57: 86 | AB57: 76 | AC57: 80.99 | AE57: 79.24 | AF57: =SUM(E57,H57,K57,N57,Q57,T57,W57,Z57,AC57) -> 537.46
A58: 11G4 | B58: الاسم 56 | C58: 81 | D58: 44 | E58: 75.82 | F58: 72 | G58: 63 | H58: 74.64 | I58: 63.5 | J58: 69.5 | K58: 77.3 | L58: 60 | M58: 44 | N58: 75.43 | O58: 80 | P58: 60 | Q58: 78.42 | R58: 64 | S58: 38 | T58: 71.36 | AA58: 84 | AB58: 54 | AC58: 71.32 | AD58: 0 | AE58: 78.97 | AF58: =SUM(E58,H58,K58,N58,Q58,T58,W58,Z58,AC58) -> 524.29
A59: 11G3 | B59: الاسم 57 | C59: 78 | D59: 28 | E59: 69.89 | F59: 88 | G59: 60 | H59: 75.35 | I59: 99 | J59: 59.5 | K59: 77.35 | L59: 81 | M59: 43 | N59: 76.87 | O59: 91 | P59: 45 | Q59: 74.47 | R59: 63 | S59: 25 | T59: 33.82 | AA59: 89 | AB59: 76 | AC59: 81.84 | AD59: 50.83 | AE59: 75.48 | AF59: 489.59
A60: 11G3 | B60: الاسم 58 | C60: 70 | D60: 54 | E60: 78.2 | F60: 73 | G60: 62 | H60: 74.32 | I60: 53.5 | J60: 78.25 | K60: 79.31 | L60: 63 | M60: 41 | N60: 74.81 | O60: 82 | P60: 32 | Q60: 68.15 | R60: 61 | S60: 27 | T60: 60.21 | AA60: 66 | AB60: 77 | AC60: 78.51 | AD60: 50.17 | AE60: 75.32 | AF60: 513.51
A61: 11G3 | B61: الاسم 59 | C61: 61 | D61: 30 | E61: 67.56 | F61: 65 | G61: 31 | H61: 38.56 | I61: 83.5 | J61: 56.25 | K61: 74.73 | L61: 60 | M61: 39 | N61: 73.99 | O61: 78 | P61: 29 | Q61: 64.57 | R61: 31 | S61: 9 | T61: 13.89 | AA61: 64 | AB61: 36 | AC61: 60 | AD61: 48.83 | AE61: 65.58 | AF61: 393.3
A62: 11G3 | B62: الاسم 60 | C62: 71 | D62: 30 | E62: 69.89 | F62: 73 | G62: 50 | H62: 68.52 | I62: 77 | J62: 76 | K62: 81.93 | L62: 62 | M62: 11 | N62: 26.79 | O62: 76 | P62: 33 | Q62: 67.53 | R62: 64 | S62: 25 | T62: 34.09 | AA62: 61 | AB62: 51 | AC62: 66.69 | AD62: 99.33 | AE62: 67.98 | AF62: 415.44
A63: 11G3 | B63: الاسم 61 | C63: 48 | D63: 32 | E63: 66.17 | F63: 93 | G63: 48 | H63: 70.58 | I63: 59 | J63: 63 | K63: 74.65 | L63: 60 | M63: 40 | N63: 74.28 | O63: 82 | P63: 43 | Q63: 72.95 | R63: 60 | S63: 25 | T63: 33.03 | AA63: 62 | AB63: 62 | AC63: 72.01 | AD63: 0 | AE63: 67.72 | AF63: 463.67
A64: 11G3 | B64: الاسم 62 | C64: 40 | D64: 27 | E64: 60.23 | F64: 41 | G64: 21 | H64: 25.44 | I64: 51.5 | J64: 75.5 | K64: 78.18 | L64: 52 | M64: 28 | N64: 70.16 | O64: 65 | P64: 29 | Q64: 61.36 | R64: 62 | S64: 25 | T64: 33.56 | AA64: 80 | AB64: 48 | AC64: 67.97 | AD64: 2.67 | AE64: 61.36 | AF64: 396.9
A65: 11G3 | B65: الاسم 63 | C65: 50 | D65: 28 | E65: 63.37 | F65: 60 | G65: 45 | H65: 63.22 | I65: 63 | J65: 72.75 | K65: 78.36 | L65: 60 | M65: 45 | N65: 75.71 | O65: 62 | P65: 30 | Q65: 61.48 | R65: 60 | S65: 30 | T65: 63.86 | AA65: 77 | AB65: 33 | AC65: 60 | AD65: 1 | AE65: 71.21 | AF65: 466
A66: 11G3 | B66: الاسم 64 | C66: 45 | D66: 20 | E66: 60 | F66: 65 | G66: 40 | H66: 61.05 | I66: 50 | J66: 73.25 | K66: 77.26 | L66: 60 | M66: 50 | N66: 77.15 | O66: 60 | P66: 37 | Q66: 67.03 | R66: 61 | S66: 22 | T66: 30.67 | AA66: 40 | AB66: 39 | AC66: 60 | AD66: 2.33 | AE66: 67.78 | AF66: 433.16
A67: 11G3 | B67: الاسم 65 | C67: 65 | D67: 50 | E67: 76.31 | F67: 70 | G67: 47 | H67: 66.17 | I67: 72.5 | J67: 75 | K67: 80.12 | L67: 63 | M67: 70 | N67: 86.93 | O67: 60 | P67: 38 | Q67: 67.9 | R67: 38 | S67: 53 | T67: 73.6 | AA67: 60 | AB67: 62 | AC67: 71.78 | AD67: 2.67 | AE67: 77.03 | AF67: 522.81
A68: 11G3 | B68: الاسم 66 | C68: 65 | D68: 41 | E68: 73.18 | F68: 80 | G68: 59 | H68: 73.87 | I68: 81.5 | J68: 75.5 | K68: 82.56 | L68: 75 | M68: 49 | N68: 78.1 | O68: 82 | P68: 51 | Q68: 75.62 | R68: 45 | S68: 34 | T68: 63.46 | AA68: 75 | AB68: 70 | AC68: 76.72 | AD68: 0 | AE68: 93 | AF68: 523.51
A69: 11G3 | B69: الاسم 67 | C69: 61 | D69: 24 | E69: 62.67 | F69: 80 | G69: 47 | H69: 67.91 | I69: 53.5 | J69: 67.25 | K69: 75.56 | L69: 65 | M69: 37 | N69: 73.82 | O69: 71 | P69: 33 | Q69: 66.29 | R69: 61 | S69: 23 | T69: 31.45 | AA69: 87 | AB69: 66 | AC69: 76.49 | AD69: 88.73 | AE69: 68.94 | AF69: 454.19
A70: 11G3 | B70: الاسم 68 | C70: 38 | D70: 15 | E70: 60 | F70: 70 | G70: 38 | H70: 60.7 | I70: 50 | J70: 78.25 | K70: 78.97 | L70: 60 | M70: 32 | N70: 71.97 | O70: 75 | P70: 32 | Q70: 66.42 | R70: 63 | S70: 23 | T70: 31.98 | AA70: 75 | AB70: 45 | AC70: 65.64 | AD70: 99.33 | AE70: 66.89 | AF70: 435.68
A71: 11G3 | B71: الاسم 69 | C71: 72 | D71: 36 | E71: 72.14 | F71: 89 | G71: 49 | H71: 70.52 | I71: 99.5 | J71: 78.25 | K71: 88.81 | L71: 72 | M71: 40 | N71: 75.26 | O71: 75 | P71: 42 | Q71: 71.95 | R71: 68 | S71: 27 | T71: 62.89 | AA71: 64 | AB71: 79 | AC71: 79.08 | AD71: 99 | AE71: 79.99 | AF71: 520.65
A72: 11G3 | B72: الاسم 70 | C72: 78 | D72: 41 | E72: 74.47 | F72: 94 | G72: 63 | H72: 77.48 | I72: 99.5 | J72: 73.25 | K72: 84.85 | L72: 83 | M72: 51 | N72: 79.33 | O72: 83 | P72: 50 | Q72: 75.38 | R72: 64 | S72: 26 | T72: 60 | AA72: 88 | AB72: 82 | AC72: 87.47 | AD72: 81 | AE72: 82.15 | AF72: 538.98
A73: 11G3 | B73: الاسم 71 | C73: 60 | D73: 30 | E73: 67.33 | F73: 69 | G73: 51 | H73: 68.43 | I73: 63.5 | J73: 75.5 | K73: 79.34 | L73: 61 | M73: 41 | N73: 74.65 | O73: 76 | P73: 37 | Q73: 70.38 | R73: 70 | S73: 32 | T73: 70.08 | AA73: 87 | AB73: 52 | AC73: 70.86 | AD73: 99.33 | AE73: 72.38 | AF73: 501.07
A74: 11G3 | B74: الاسم 72 | C74: 64 | D74: 29 | E74: 67.45 | F74: 67 | G74: 45 | H74: 64.44 | I74: 68 | J74: 59.5 | K74: 74.33 | L74: 60 | M74: 48 | N74: 76.58 | O74: 71 | P74: 40 | Q74: 70.9 | R74: 60 | S74: 29 | T74: 62.51 | AA74: 71 | AB74: 62 | AC74: 73.05 | AD74: 97.33 | AE74: 72.45 | AF74: 489.26
A75: 11G3 | B75: الاسم 73 | C75: 48 | D75: 31 | E75: 65.35 | F75: 64 | G75: 44 | H75: 63.3 | I75: 51.5 | J75: 73.25 | K75: 77.41 | L75: 60 | M75: 30 | N75: 71.4 | O75: 75 | P75: 44 | Q75: 72.62 | R75: 60 | S75: 30 | T75: 63.86 | AA75: 70 | AB75: 72 | AC75: 76.95 | AD75: 49.83 | AE75: 73.41 | AF75: 490.89
A76: 11G3 | B76: الاسم 74 | C76: 88 | D76: 61 | E76: 84.71 | F76: 96 | G76: 73 | H76: 85.22 | I76: 99.5 | J76: 67.25 | K76: 80.1 | L76: 86 | M76: 80 | N76: 93.28 | O76: 95 | P76: 72 | Q76: 86.81 | R76: 72 | S76: 54 | T76: 76.78 | AA76: 83 | AB76: 91 | AC76: 92.65 | AD76: 99.33 | AE76: 88.92 | AF76: 599.55
A77: 11G3 | B77: الاسم 75 | C77: 72 | D77: 44 | E77: 74.92 | F77: 80 | G77: 58 | H77: 73.42 | I77: 99.5 | J77: 54 | K77: 75.52 | L77: 78 | M77: 37 | N77: 74.89 | O77: 86 | P77: 47 | Q77: 74.67 | R77: 62 | S77: 32 | T77: 67.32 | AA77: 84 | AB77: 77 | AC77: 81.42 | AD77: 37.1 | AE77: 76.78 | AF77: 522.16
A78: 11G3 | B78: الاسم 76 | C78: 82 | D78: 90 | E78: 95.62 | F78: 70 | G78: 69 | H78: 77.09 | I78: 99.5 | J78: 70.5 | K78: 82.67 | L78: 68 | M78: 64 | N78: 84.05 | O78: 79 | P78: 70 | Q78: 82.94 | R78: 34 | S78: 69 | T78: 78 | AA78: 66 | AB78: 74 | AC78: 77.3 | AD78: 99.67 | AE78: 87.35 | AF78: 577.67
A79: 11G3 | B79: الاسم 77 | C79: 62 | D79: 32 | E79: 69.42 | F79: 71 | G79: 17 | H79: 29.08 | I79: 72.5 | J79: 73.25 | K79: 79.45 | L79: 60 | M79: 42 | N79: 74.85 | O79: 80 | P79: 32 | Q79: 67.66 | R79: 33 | S79: 13 | T79: 17.44 | AA79: 75 | AB79: 61 | AC79: 73.1 | AD79: 99.67 | AE79: 62.08 | AF79: 411
A80: 11G3 | B80: الاسم 78 | C80: 64 | D80: 42 | E80: 73.43 | F80: 84 | G80: 61 | H80: 75.29 | I80: 72.5 | J80: 65 | K80: 76.64 | L80: 64 | M80: 40 | N80: 74.6 | O80: 81 | P80: 52 | Q80: 75.85 | R80: 61 | S80: 35 | T80: 70.21 | AA80: 65 | AB80: 71 | AC80: 75.98 | AD80: 99.33 | AE80: 80.42 | AF80: 522
A81: 11G3 | B81: الاسم 79 | C81: 60 | D81: 37 | E81: 71.29 | F81: 78 | G81: 47 | H81: 67.56 | I81: 98 | J81: 76 | K81: 86.69 | L81: 60 | M81: 35 | N81: 72.84 | O81: 67 | P81: 28 | Q81: 60.99 | R81: 60 | S81: 29 | T81: 62.51 | AA81: 79 | AB81: 78 | AC81: 80.99 | AD81: 49.83 | AE81: 73.06 | AF81: 502.87
A82: 11G3 | B82: الاسم 80 | C82: 65 | D82: 26 | E82: 65.24 | F82: 82 | G82: 47 | H82: 68.26 | I82: 99 | J82: 63.75 | K82: 78.79 | L82: 81 | M82: 38 | N82: 75.43 | O82: 82 | P82: 49 | Q82: 74.95 | R82: 61 | S82: 28 | T82: 61.54 | AA82: 88 | AB82: 70 | AC82: 78.22 | AD82: 48.5 | AE82: 78.56 | AF82: 502.43
A83: 11G3 | B83: الاسم 81 | C83: 72 | D83: 65 | E83: 84.33 | F83: 70 | G83: 57 | H83: 71.68 | I83: 81.5 | J83: 80 | K83: 86.12 | L83: 67 | M83: 65 | N83: 84.5 | O83: 72 | P83: 60 | Q83: 77.66 | R83: 60 | S83: 80 | T83: 87.13 | AA83: 81 | AB83: 62 | AC83: 74.19 | AD83: 97.67 | AE83: 82.02 | AF83: 565.61
A84: 11G3 | B84: الاسم 82 | C84: 71 | D84: 35 | E84: 71.69 | F84: 93 | G84: 55 | H84: 73.74 | I84: 99 | J84: 73.25 | K84: 84.74 | L84: 87 | M84: 51 | N84: 79.66 | O84: 84 | P84: 50 | Q84: 75.47 | R84: 70 | S84: 30 | T84: 67.7 | AA84: 88 | AB84: 61 | AC84: 74.6 | AD84: 99.33 | AE84: 79.78 | AF84: 527.6
A85: 11G3 | B85: الاسم 83 | C85: 75 | D85: 39 | E85: 73.48 | F85: 81 | G85: 67 | H85: 77.61 | I85: 72.5 | J85: 62.25 | K85: 75.71 | L85: 79 | M85: 47 | N85: 77.85 | O85: 79 | P85: 60 | Q85: 78.33 | R85: 69 | S85: 44 | T85: 73.56 | AA85: 87 | AB85: 70 | AC85: 78.1 | AD85: 48.83 | AE85: 80.33 | AF85: 534.64
A86: 11G3 | B86: الاسم 84 | C86: 70 | D86: 41 | E86: 73.68 | F86: 86 | G86: 66 | H86: 77.8 | I86: 81 | J86: 75.5 | K86: 82.44 | L86: 78 | M86: 42 | N86: 76.33 | O86: 86 | P86: 32 | Q86: 69.13 | R86: 62 | S86: 29 | T86: 63.27 | AA86: 66 | AB86: 79 | AC86: 79.31 | AD86: 1 | AE86: 76.96 | AF86: 521.96
A87: 11A1 | B87: الاسم 85 | C87: 92 | D87: 70 | E87: 80.3 | F87: 90 | G87: 73 | H87: 77.61 | I87: 81.5 | J87: 79.75 | K87: 81.77 | L87: 90 | M87: 62 | N87: 81.04 | R87: 82 | S87: 53 | T87: 77.47 | U87: 78 | V87: 64 | W87: 76.26 | AA87: 100 | AB87: 77 | AC87: 82.22 | AD87: 79.33 | AE87: 82.27416667 | AF87: 556.67
A88: 11A1 | B88: الاسم 86 | C88: 66 | D88: 78 | E88: 80.69 | F88: 87 | G88: 75 | H88: 78.41 | I88: 99.5 | J88: 82.75 | K88: 88.5 | L88: 63 | M88: 33 | N88: 69.19 | R88: 77 | S88: 47 | T88: 74.85 | U88: 63 | V88: 64 | W88: 75.08 | AA88: 95 | AB88: 94 | AC88: 94.28 | AD88: 0 | AE88: 82.8225 | AF88: 561
A89: 11A1 | B89: الاسم 87 | C89: 48 | D89: 51 | E89: 69.31 | F89: 83 | G89: 71 | H89: 74.81 | I89: 75.5 | J89: 66.25 | K89: 74.56 | L89: 60 | M89: 60 | N89: 77.13 | R89: 72 | S89: 51 | T89: 75.76 | U89: 74 | V89: 64 | W89: 75.94 | AA89: 100 | AB89: 82 | AC89: 86.11 | AD89: 99.33 | AE89: 81.165 | AF89: 533.62
A90: 11A1 | B90: الاسم 88 | C90: 88 | D90: 53 | E90: 73.3 | F90: 77 | G90: 71 | H90: 73.6 | I90: 81 | J90: 82.75 | K90: 84.13 | L90: 87 | M90: 77 | N90: 89.03 | R90: 85 | S90: 60 | T90: 80.44 | U90: 82 | V90: 81 | W90: 82.9 | AA90: 95 | AB90: 71 | AC90: 78.75 | AD90: 96.67 | AE90: 83.89 | AF90: 562.15
A91: 11A1 | B91: الاسم 89 | C91: 100 | D91: 100 | E91: 100 | F91: 98 | G91: 85 | H91: 90 | I91: 100 | J91: 91 | K91: 94.22 | L91: 96 | M91: 90 | N91: 95.54 | R91: 99 | S91: 90 | T91: 96.42 | U91: 96 | V91: 92 | W91: 92.97 | AA91: 100 | AB91: 85 | AC91: 88.44 | AD91: 84.8 | AE91: 93.97 | AF91: 657.59
A92: 11A1 | B92: الاسم 90 | C92: 66 | D92: 66 | E92: 75.83 | F92: 87 | G92: 65 | H92: 71.4 | I92: 81.5 | J92: 85.5 | K92: 86.53 | L92: 65 | M92: 60 | N92: 77.6 | R92: 68 | S92: 50 | T92: 75 | U92: 79 | V92: 61 | W92: 75.51 | AA92: 98 | AB92: 74 | AC92: 79.8 | AD92: 100 | AE92: 82.33 | AF92: 541.67
A93: 11A1 | B93: الاسم 91 | C93: 4 | D93: 47 | E93: 66.93 | F93: 80 | G93: 76 | H93: 77.7 | I93: 49.5 | J93: 64 | K93: 70.53 | L93: 46 | M93: 42 | N93: 69.94 | R93: 66 | S93: 31 | T93: 69.01 | U93: 77 | V93: 52 | W93: 72.87 | AA93: 82 | AB93: 76 | AC93: 79.1 | AD93: 40 | AE93: 78.14166667 | AF93: 506.08
A94: 11A1 | B94: الاسم 92 | C94: 98 | D94: 77 | E94: 86.4 | F94: 96 | G94: 80 | H94: 84.88 | I94: 99 | J94: 93.25 | K94: 95.49 | L94: 88 | M94: 74 | N94: 87.49 | R94: 98 | S94: 70 | T94: 88.85 | U94: 93 | V94: 84 | W94: 86.82 | AA94: 100 | AB94: 76 | AC94: 81.44 | AD94: 80.67 | AE94: 88.855 | AF94: 611.37
A95: 11A1 | B95: الاسم 93 | C95: 87 | D95: 57 | E95: 74.7 | F95: 92 | G95: 76 | H95: 80.14 | I95: 99 | J95: 86 | K95: 90.83 | L95: 90 | M95: 78 | N95: 90.06 | R95: 82 | S95: 48 | T95: 75.71 | U95: 91 | V95: 80 | W95: 83.9 | AA95: 100 | AB95: 79 | AC95: 83.78 | AD95: 89.17 | AE95: 96 | AF95: 579.12
A96: 11A1 | B96: الاسم 94 | C96: 90 | D96: 60 | E96: 76.16 | F96: 90 | G96: 76 | H96: 79.7 | I96: 99 | J96: 85.5 | K96: 90.51 | L96: 85 | M96: 61 | N96: 79.8 | R96: 80 | S96: 51 | T96: 76.56 | U96: 85 | V96: 76 | W96: 80.27 | AA96: 100 | AB96: 67 | AC96: 78.05 | AD96: 68.27 | AE96: 83.73083333 | AF96: 561.05
A97: 11A1 | B97: الاسم 95 | C97: 32 | D97: 75 | E97: 75.56 | F97: 84 | G97: 69 | H97: 73.6 | I97: 99.5 | J97: 78.25 | K97: 84.78 | L97: 78 | M97: 62 | N97: 79.48 | R97: 77 | S97: 53 | T97: 76.96 | U97: 81 | V97: 73 | W97: 78.97 | AA97: 100 | AB97: 78 | AC97: 83 | AD97: 90.17 | AE97: 82.84333333 | AF97: 552.35
A98: 11A1 | B98: الاسم 96 | C98: 100 | D98: 65 | E98: 79.13 | F98: 87 | G98: 77 | H98: 79.8 | I98: 98.5 | J98: 91 | K98: 93.95 | L98: 91 | M98: 60 | N98: 80.08 | R98: 98 | S98: 60 | T98: 82.71 | U98: 85 | V98: 72 | W98: 79.01 | AA98: 100 | AB98: 79 | AC98: 83.78 | AD98: 96.2 | AE98: 85.30583333 | AF98: 578.46
A99: 11A1 | B99: الاسم 97 | C99: 74 | D99: 63 | E99: 75.56 | F99: 84 | G99: 79 | H99: 80.79 | I99: 86.9 | J99: 80.5 | K99: 83.67 | L99: 73 | M99: 60 | N99: 78.35 | R99: 80 | S99: 50 | T99: 76.21 | U99: 83 | V99: 52 | W99: 73.35 | AA99: 100 | AB99: 77 | AC99: 82.22 | AD99: 41.67 | AE99: 82.46833333 | AF99: 550.15
A100: 11A1 | B100: الاسم 98 | C100: 92 | D100: 57 | E100: 75.24 | F100: 84 | G100: 76 | H100: 78.51 | I100: 98 | J100: 79.25 | K100: 85.26 | L100: 88 | M100: 60 | N100: 79.76 | R100: 85 | S100: 53 | T100: 77.77 | U100: 75 | V100: 61 | W100: 75.19 | AA100: 98 | AB100: 82 | AC100: 85.67 | AD100: 96.2 | AE100: 83.75 | AF100: 557.4
A101: 11A1 | B101: الاسم 99 | C101: 60 | D101: 57 | E101: 71.78 | F101: 92 | G101: 68 | H101: 74.5 | I101: 81 | J101: 87.75 | K101: 88.27 | L101: 64 | M101: 60 | N101: 77.51 | R101: 79 | S101: 48 | T101: 75.4 | U101: 82 | V101: 52 | W101: 73.27 | AA101: 100 | AB101: 72 | AC101: 79.41 | AD101: 84.47 | AE101: 81.13833333 | AF101: 540.14
A102: 11A1 | B102: الاسم 100 | C102: 63 | D102: 24 | E102: 66.05 | F102: 82 | G102: 50 | H102: 68.35 | I102: 84 | J102: 55.25 | K102: 70.99 | L102: 81 | M102: 29 | N102: 69.4 | R102: 79 | S102: 34 | T102: 70.45 | U102: 77 | V102: 32 | W102: 68.49 | AA102: 94 | AB102: 54 | AC102: 74.04 | AD102: 84.8 | AE102: 77.7575 | AF102: 487.77
A103: 11A1 | B103: الاسم 101 | C103: 60 | D103: 62 | E103: 73.68 | F103: 82 | G103: 67 | H103: 71.8 | I103: 80.5 | J103: 79.25 | K103: 81.13 | L103: 72 | M103: 47 | N103: 73.99 | R103: 68 | S103: 43 | T103: 72.53 | U103: 75 | V103: 67 | W103: 76.85 | AA103: 96 | AB103: 64 | AC103: 76.92 | AD103: 82.23 | AE103: 80.1075 | AF103: 526.9
A104: 11A1 | B104: الاسم 102 | C104: 60 | D104: 42 | E104: 68.51 | F104: 84 | G104: 60 | H104: 69.55 | I104: 80.5 | J104: 84.25 | K104: 85.26 | L104: 52 | M104: 60 | N104: 76.38 | R104: 69 | S104: 36 | T104: 70.15 | U104: 71 | V104: 64 | W104: 75.71 | AA104: 100 | AB104: 75 | AC104: 80.67 | AD104: 41.67 | AE104: 80.05833333 | AF104: 526.23
A105: 11A1 | B105: الاسم 103 | C105: 73 | D105: 67 | E105: 76.97 | F105: 80 | G105: 64 | H105: 69.88 | I105: 81 | J105: 73.25 | K105: 78.12 | L105: 79 | M105: 47 | N105: 74.64 | R105: 79 | S105: 36 | T105: 71.16 | U105: 66 | V105: 66 | W105: 75.86 | AA105: 100 | AB105: 78 | AC105: 83 | AD105: 96.2 | AE105: 80.51 | AF105: 529.63
A106: 11A1 | B106: الاسم 104 | C106: 70 | D106: 65 | E106: 75.89 | F106: 96 | G106: 65 | H106: 73.2 | I106: 90.5 | J106: 93.25 | K106: 93.93 | L106: 83 | M106: 61 | N106: 79.62 | R106: 80 | S106: 60 | T106: 79.74 | U106: 81 | V106: 60 | W106: 75.39 | AA106: 100 | AB106: 79 | AC106: 83.78 | AD106: 96.2 | AE106: 83.63083333 | AF106: 561.55
A107: 11A1 | B107: الاسم 105 | C107: 54 | D107: 66 | E107: 74.54 | F107: 76 | G107: 60 | H107: 69.29 | I107: 90.5 | J107: 66.75 | K107: 76.55 | L107: 78 | M107: 38 | N107: 71.6 | R107: 71 | S107: 47 | T107: 74.24 | U107: 69 | V107: 52 | W107: 72.24 | AA107: 100 | AB107: 60 | AC107: 76.14 | AD107: 96.2 | AE107: 78.96916667 | AF107: 514.6
A108: 11A1 | B108: الاسم 106 | C108: 80 | D108: 54 | E108: 72.81 | F108: 85 | G108: 61 | H108: 69.7 | I108: 72.5 | J108: 83.25 | K108: 82.54 | L108: 83 | M108: 49 | N108: 75.68 | R108: 80 | S108: 43 | T108: 73.73 | U108: 77 | V108: 73 | W108: 78.66 | AA108: 98 | AB108: 66 | AC108: 77.62 | AD108: 84.8 | AE108: 81.01083333 | AF108: 530.74
A109: 11A1 | B109: الاسم 107 | C109: 87 | D109: 72 | E109: 80.69 | F109: 86 | G109: 70 | H109: 74.71 | I109: 99 | J109: 90.5 | K109: 93.72 | L109: 92 | M109: 60 | N109: 80.24 | R109: 97 | S109: 60 | T109: 82.54 | U109: 82 | V109: 88 | W109: 87.36 | AA109: 100 | AB109: 85 | AC109: 88.44 | AD109: 98.1 | AE109: 87.13916667 | AF109: 587.7
A110: 11A1 | B110: الاسم 108 | C110: 85 | D110: 34 | E110: 68.39 | F110: 81 | G110: 77 | H110: 78.6 | I110: 90.5 | J110: 79.75 | K110: 83.9 | L110: 95 | M110: 84 | N110: 93.02 | R110: 84 | S110: 51 | T110: 76.96 | U110: 83 | V110: 76 | W110: 79.95 | AA110: 98 | AB110: 73 | AC110: 79.53 | AD110: 96.2 | AE110: 83.29916667 | AF110: 560.35
A111: 11A1 | B111: الاسم 109 | C111: 94 | D111: 79 | E111: 86.99 | F111: 86 | G111: 66 | H111: 71.9 | I111: 86 | J111: 69 | K111: 76.95 | L111: 80 | M111: 60 | N111: 79.01 | R111: 78 | S111: 47 | T111: 74.95 | U111: 85 | V111: 60 | W111: 75.71 | AA111: 98 | AB111: 64 | AC111: 77.08 | AD111: 81 | AE111: 82.62333333 | AF111: 542.59
A112: 11A1 | B112: الاسم 110 | C112: 76 | D112: 67 | E112: 77.29 | F112: 86 | G112: 77 | H112: 79.6 | I112: 99.5 | J112: 91 | K112: 94.13 | L112: 92 | M112: 62 | N112: 81.37 | R112: 79 | S112: 51 | T112: 76.46 | U112: 69 | V112: 65 | W112: 75.82 | AA112: 100 | AB112: 79 | AC112: 83.78 | AD112: 98.1 | AE112: 84.71833333 | AF112: 568.45
A113: 11A1 | B113: الاسم 111 | C113: 72 | D113: 63 | E113: 75.35 | F113: 92 | G113: 66 | H113: 73.11 | I113: 90.5 | J113: 88.25 | K113: 90.72 | L113: 80 | M113: 60 | N113: 79.01 | R113: 83 | S113: 47 | T113: 75.45 | U113: 82 | V113: 55 | W113: 74.09 | AA113: 100 | AB113: 76 | AC113: 81.44 | AD113: 95.53 | AE113: 82.6425 | AF113: 549.17
A114: 11A1 | B114: الاسم 112 | C114: 62 | D114: 56 | E114: 71.62 | F114: 88 | G114: 61 | H114: 69.8 | I114: 81 | J114: 85.5 | K114: 86.41 | L114: 80 | M114: 44 | N114: 73.75 | R114: 79 | S114: 47 | T114: 75.05 | U114: 76 | V114: 60 | W114: 75 | AA114: 100 | AB114: 45 | AC114: 72.06 | AD114: 75.87 | AE114: 79.78166667 | AF114: 523.69
A115: 11G1 | B115: الاسم 113 | C115: 71 | D115: 32 | E115: 70.65 | F115: 76 | G115: 64 | H115: 75.61 | I115: 85.6 | J115: 72.75 | K115: 81.31 | L115: 64 | M115: 46 | N115: 76.33 | O115: 69 | P115: 60 | Q115: 77.38 | R115: 33 | S115: 17 | T115: 20.56 | AA115: 82 | AB115: 73 | AC115: 78.73 | AD115: 94.3 | AE115: 71.83 | AF115: 480.57
A116: 11G1 | B116: الاسم 114 | C116: 61 | D116: 40 | E116: 72.44 | F116: 77 | G116: 67 | H116: 77.09 | I116: 91 | J116: 53.5 | K116: 74.52 | L116: 64 | M116: 60 | N116: 80.81 | O116: 69 | P116: 64 | Q116: 78.71 | R116: 71 | S116: 33 | T116: 70.46 | AA116: 89 | AB116: 71 | AC116: 78.73 | AD116: 96.2 | AE116: 78.33 | AF116: 532.76
A117: 11G1 | B117: الاسم 115 | C117: 74 | D117: 53 | E117: 78.25 | F117: 82 | G117: 74 | H117: 82.09 | I117: 86 | J117: 56.25 | K117: 74.98 | L117: 100 | M117: 71 | N117: 91.88 | O117: 90 | P117: 69 | Q117: 84.2 | R117: 61 | S117: 27 | T117: 60.21 | AA117: 93 | AB117: 94 | AC117: 95.76 | AD117: 98.1 | AE117: 82.56 | AF117: 567.37
A118: 11G1 | B118: الاسم 116 | C118: 67 | D118: 47 | E118: 75.47 | F118: 72 | G118: 69 | H118: 77.35 | I118: 94.6 | J118: 70 | K118: 81.17 | L118: 74 | M118: 60 | N118: 82.61 | O118: 72 | P118: 61 | Q118: 77.99 | R118: 66 | S118: 28 | T118: 63.46 | AA118: 93 | AB118: 91 | AC118: 94.16 | AD118: 97.77 | AE118: 95 | AF118: 552.21
A119: 11G1 | B119: الاسم 117 | C119: 70 | D119: 39 | E119: 72.98 | F119: 76 | G119: 56 | H119: 72 | I119: 93.2 | J119: 55.5 | K119: 75.42 | L119: 67 | M119: 49 | N119: 77.44 | O119: 68 | P119: 58 | Q119: 76.61 | R119: 66 | S119: 27 | T119: 62.13 | AA119: 85 | AB119: 72 | AC119: 78.68 | AD119: 41.67 | AE119: 75.97 | AF119: 515.26
A120: 11G1 | B120: الاسم 118 | C120: 46 | D120: 42 | E120: 71.64 | F120: 78 | G120: 68 | H120: 77.67 | I120: 94.4 | J120: 58.25 | K120: 76.47 | L120: 66 | M120: 40 | N120: 74.77 | O120: 68 | P120: 58 | Q120: 76.61 | R120: 63 | S120: 25 | T120: 33.82 | AA120: 82 | AB120: 69 | AC120: 77.13 | AD120: 100 | AE120: 76.18 | AF120: 488.11
A121: 11G1 | B121: الاسم 119 | C121: 61 | D121: 48 | E121: 75.22 | F121: 70 | G121: 67 | H121: 76.19 | I121: 87 | J121: 64.5 | K121: 77.88 | L121: 72 | M121: 40 | N121: 75.26 | O121: 76 | P121: 59 | Q121: 77.71 | R121: 76 | S121: 32 | T121: 70.59 | AA121: 83 | AB121: 62 | AC121: 74.43 | AD121: 98.1 | AE121: 77.94 | AF121: 527.28
A122: 11G1 | B122: الاسم 120 | C122: 65 | D122: 39 | E122: 72.49 | F122: 81 | G122: 74 | H122: 81.8 | I122: 90.8 | J122: 61.75 | K122: 77.32 | L122: 73 | M122: 47 | N122: 77.36 | O122: 76 | P122: 60 | Q122: 78.05 | R122: 69 | S122: 29 | T122: 65.97 | AA122: 88 | AB122: 45 | AC122: 67.6 | AD122: 86.03 | AE122: 76.67 | AF122: =SUM(E122,H122,K122,N122,Q122,T122,W122,Z122,AC122) -> 520.59
A123: 11G1 | B123: الاسم 121 | C123: 87 | D123: 50 | E123: 78.5 | F123: 83 | G123: 72 | H123: 80.3 | I123: 98.2 | J123: 48.5 | K123: 73.52 | L123: 74 | M123: 44 | N123: 76.58 | O123: 84 | P123: 53 | Q123: 76.47 | R123: 64 | S123: 29 | T123: 64.05 | AA123: 97 | AB123: 70 | AC123: 79.25 | AD123: 57.2 | AE123: 81.86 | AF123: 528.67
A124: 11G1 | B124: الاسم 122 | C124: 80 | D124: 44 | E124: 75.72 | F124: 86 | G124: 75 | H124: 84.32 | I124: 79 | J124: 64.5 | K124: 77.1 | L124: 71 | M124: 62 | N124: 83.33 | O124: 77 | P124: 61 | Q124: 78.47 | R124: 69 | S124: 31 | T124: 68.66 | AA124: 82 | AB124: 69 | AC124: 77.13 | AD124: 60.67 | AE124: 79.23 | AF124: 544.73
A125: 11G1 | B125: الاسم 123 | C125: 54 | D125: 36 | E125: 70.35 | F125: 72 | G125: 68 | H125: 76.9 | I125: 78 | J125: 64.5 | K125: 77.01 | L125: 66 | M125: 60 | N125: 81.17 | O125: 70 | P125: 62 | Q125: 78.14 | R125: 61 | S125: 25 | T125: 33.3 | AA125: 82 | AB125: 58 | AC125: 72.7 | AD125: 66.37 | AE125: 68.92 | AF125: 489.57
A126: 11G1 | B126: الاسم 124 | C126: 64 | D126: 45 | E126: 74.47 | F126: 73 | G126: 61 | H126: 73.87 | I126: 59 | J126: 64.5 | K126: 75.16 | L126: 69 | M126: 60 | N126: 81.71 | O126: 73 | P126: 51 | Q126: 74.76 | R126: 74 | S126: 67 | T126: 81.66 | AA126: 60 | AB126: 61 | AC126: 71.38 | AD126: 68.27 | AE126: 80.91 | AF126: 533.01
A127: 11G1 | B127: الاسم 125 | C127: 50 | D127: 47 | E127: 73.78 | F127: 70 | G127: 67 | H127: 76.19 | I127: 80.6 | J127: 50.75 | K127: 72.58 | L127: 68 | M127: 37 | N127: 74.07 | O127: 81 | P127: 54 | Q127: 76.52 | R127: 70 | S127: 31 | T127: 69.06 | AA127: 80 | AB127: 69 | AC127: 76.89 | AD127: 42 | AE127: 74.91 | AF127: 519.09
A128: 11G1 | B128: الاسم 126 | C128: 96 | D128: 54 | E128: 81.53 | F128: 92 | G128: 82 | H128: 91.39 | I128: 98.2 | J128: 56.25 | K128: 76.16 | L128: 99 | M128: 47 | N128: 79.5 | O128: 81 | P128: 62 | Q128: 79.18 | R128: 85 | S128: 42 | T128: 74.32 | AA128: 98 | AB128: 74 | AC128: 82.4 | AD128: 41.67 | AE128: 83.92 | AF128: 564.48
A129: 11G1 | B129: الاسم 127 | C129: 50 | D129: 31 | E129: 65.81 | F129: 66 | G129: 45 | H129: 64.26 | I129: 14 | J129: 64.5 | K129: 70.78 | L129: 67 | M129: 48 | N129: 77.15 | O129: 61 | P129: 60 | Q129: 76.61 | R129: 68 | S129: 24 | T129: 34.22 | AA129: 75 | AB129: 36 | AC129: 60.91 | AD129: 98.1 | AE129: 71.89 | AF129: 449.74
A130: 11G1 | B130: الاسم 128 | C130: 53 | D130: 15 | E130: 60 | F130: 74 | G130: 28 | H130: 38.22 | I130: 98 | J130: 60 | K130: 77.42 | L130: 60 | M130: 9 | N130: 20.96 | O130: 72 | P130: 29 | Q130: 63.09 | R130: 74 | S130: 31 | T130: 70.1 | AA130: 64 | AB130: 27 | AC130: 60 | AD130: 68.27 | AE130: 59 | AF130: 389.79
A131: 11G1 | B131: الاسم 129 | C131: 54 | D131: 36 | E131: 70.35 | F131: 80 | G131: 63 | H131: 75.68 | I131: 14 | J131: 64.5 | K131: 70.78 | L131: 66 | M131: 45 | N131: 76.21 | O131: 77 | P131: 59 | Q131: 77.81 | R131: 65 | S131: 26 | T131: 60.4 | AA131: 83 | AB131: 61 | AC131: 74.02 | AD131: 81.57 | AE131: 77.1 | AF131: 505.25
A132: 11G1 | B132: الاسم 130 | C132: 40 | D132: 41 | E132: 70.7 | F132: 78 | G132: 72 | H132: 79.48 | I132: 88.8 | J132: 64.5 | K132: 78.06 | L132: 71 | M132: 45 | N132: 76.62 | O132: 71 | P132: 63 | Q132: 78.57 | R132: 71 | S132: 24 | T132: 60 | AA132: 83 | AB132: 63 | AC132: 74.82 | AD132: 60.67 | AE132: 79.58 | AF132: 518.25
A133: 11G1 | B133: الاسم 131 | C133: 62 | D133: 44 | E133: 73.93 | F133: 76 | G133: 72 | H133: 79.22 | I133: 53 | J133: 60 | K133: 73.04 | L133: 81 | M133: 60 | N133: 83.88 | O133: 73 | P133: 61 | Q133: 78.09 | R133: 67 | S133: 27 | T133: 62.51 | AA133: 81 | AB133: 60 | AC133: 73.39 | AD133: 56.53 | AE133: 79.87 | AF133: 524.06
A134: 11G1 | B134: الاسم 132 | C134: 4 | D134: 35 | E134: 60 | F134: 66 | G134: 60 | H134: 72.51 | I134: 17 | J134: 54 | K134: 66.22 | L134: 65 | M134: 39 | N134: 74.4 | O134: 77 | P134: 52 | Q134: 75.47 | R134: 67 | S134: 28 | T134: 63.86 | AA134: 64 | AB134: 60 | AC134: 71.44 | AD134: 67.93 | AE134: 73.4 | AF134: 483.9
A135: 11G1 | B135: الاسم 133 | C135: 83 | D135: 46 | E135: 76.71 | F135: 90 | G135: 79 | H135: 89.69 | I135: 92.8 | J135: 61.75 | K135: 77.51 | L135: 100 | M135: 55 | N135: 84.14 | O135: 78 | P135: 63 | Q135: 79.23 | R135: 70 | S135: 32 | T135: 70.08 | AA135: 98 | AB135: 88 | AC135: 93.33 | AD135: 92.4 | AE135: 82.86 | AF135: 570.69
A136: 11G1 | B136: الاسم 134 | C136: 46 | D136: 50 | E136: 74.42 | F136: 74 | G136: 53 | H136: 70.39 | I136: 77 | J136: 65 | K136: 77.08 | L136: 65 | M136: 38 | N136: 74.11 | O136: 68 | P136: 56 | Q136: 75.95 | R136: 67 | S136: 26 | T136: 61.16 | AA136: 66 | AB136: 68 | AC136: 74.89 | AD136: 66.37 | AE136: 71.35 | AF136: 508
A137: 11G1 | B137: الاسم 135 | C137: 72 | D137: 40 | E137: 73.53 | F137: 71 | G137: 56 | H137: 71.35 | I137: 77 | J137: 50.75 | K137: 72.22 | L137: 68 | M137: 41 | N137: 75.22 | O137: 77 | P137: 56 | Q137: 76.81 | R137: 74 | S137: 32 | T137: 70.42 | AA137: 70 | AB137: 70 | AC137: 76.15 | AD137: 98.67 | AE137: 76.39 | AF137: 515.7
A138: 11G1 | B138: الاسم 136 | C138: 48 | D138: 61 | E138: 78.45 | F138: 70 | G138: 62 | H138: 73.94 | I138: 59 | J138: 59 | K138: 73.28 | L138: 70 | M138: 60 | N138: 81.89 | O138: 79 | P138: 55 | Q138: 76.66 | R138: 77 | S138: 69 | T138: 83.4 | AA138: 60 | AB138: 56 | AC138: 69.17 | AD138: 72.07 | AE138: 80.3 | AF138: 536.79
A139: 11G1 | B139: الاسم 137 | C139: 67 | D139: 43 | E139: 74.08 | F139: 80 | G139: 72 | H139: 79.74 | I139: 53 | J139: 30.75 | K139: 37.62 | L139: 94 | M139: 68 | N139: 90.56 | O139: 74 | P139: 53 | Q139: 75.52 | R139: 68 | S139: 45 | T139: 73.77 | AA139: 60 | AB139: 82 | AC139: 79.82 | AD139: 68.27 | AE139: 75.48 | AF139: 511.11
A140: 11G1 | B140: الاسم 138 | C140: 60 | D140: 42 | E140: 73.03 | F140: 80 | G140: 67 | H140: 77.48 | I140: 80.6 | J140: 70.5 | K140: 79.3 | L140: 81 | M140: 50 | N140: 78.88 | O140: 75 | P140: 64 | Q140: 79.28 | R140: 68 | S140: 25 | T140: 60.21 | AA140: 91 | AB140: 76 | AC140: 82.4 | AD140: 98.1 | AE140: 77.63 | AF140: 530.58
A141: 11G1 | B141: الاسم 139 | C141: 57 | D141: 25 | E141: 62.56 | F141: 68 | G141: 61 | H141: 73.23 | I141: 84.8 | J141: 64.5 | K141: 77.67 | L141: 64 | M141: 36 | N141: 73.45 | O141: 67 | P141: 60 | Q141: 77.19 | R141: 65 | S141: 27 | T141: 61.73 | AA141: 74 | AB141: 48 | AC141: 67.07 | AD141: 69.27 | AE141: 75.11 | AF141: 492.9
A142: 11G1 | B142: الاسم 140 | C142: 46 | D142: 48 | E142: 73.73 | F142: 79 | G142: 76 | H142: 83.29 | I142: 80.6 | J142: 64.5 | K142: 77.26 | L142: 84 | M142: 53 | N142: 80 | O142: 69 | P142: 57 | Q142: 76.38 | R142: 71 | S142: 26 | T142: 62.7 | AA142: 74 | AB142: 66 | AC142: 75 | AD142: 86.7 | AE142: 73.8 | AF142: 528.36
A143: 11G1 | B143: الاسم 141 | C143: 68 | D143: 54 | E143: 78 | F143: 78 | G143: 75 | H143: 81.95 | I143: 17 | J143: 53.5 | K143: 65.97 | L143: 79 | M143: 56 | N143: 80.99 | O143: 73 | P143: 63 | Q143: 78.76 | R143: 68 | S143: 26 | T143: 61.54 | AA143: 93 | AB143: 79 | AC143: 85.92 | AD143: 83.47 | AE143: 80.47 | AF143: 533.13
A144: 11G1 | B144: الاسم 142 | C144: 80 | D144: 51 | E144: 78.15 | F144: 77 | G144: 79 | H144: 85.83 | I144: 94.2 | J144: 61.75 | K144: 77.65 | L144: 84 | M144: 60 | N144: 84.41 | O144: 75 | P144: 68 | Q144: 81.1 | R144: 73 | S144: 35 | T144: 71.23 | AA144: 84 | AB144: 76 | AC144: 80.43 | AD144: 60.67 | AE144: 83.47 | AF144: 558.8
A145: 11G1 | B145: الاسم 143 | C145: 72 | D145: 32 | E145: 70.75 | F145: 76 | G145: 50 | H145: 69.04 | I145: 86 | J145: 62.25 | K145: 77.02 | L145: 76 | M145: 46 | N145: 77.32 | O145: 77 | P145: 55 | Q145: 76.47 | R145: 64 | S145: 23 | T145: 32.24 | AA145: 66 | AB145: 51 | AC145: 67.44 | AD145: 59.67 | AE145: 73.09 | AF145: 470.28
A146: 9A1 | B146: الاسم 144 | C146: 84 | D146: 48 | E146: 70.7 | F146: 93 | G146: 66 | H146: 76.05 | I146: 81.5 | J146: 78.75 | K146: 79.98 | L146: 73 | M146: 26 | N146: 71.34 | R146: 86 | S146: 43 | T146: 75.11 | U146: 91 | V146: 62 | W146: 79.72 | AA146: 81 | AB146: 67 | AC146: 77.12 | AD146: 75.87 | AE146: 82.73 | AF146: 530.02
A147: 9A1 | B147: الاسم 145 | C147: 83 | D147: 74 | E147: 80.92 | F147: 87 | G147: 71 | H147: 77.33 | I147: 88.1 | J147: 52.25 | K147: 71.46 | L147: 72 | M147: 28 | N147: 71.83 | R147: 81 | S147: 55 | T147: 79.32 | U147: 86 | V147: 65 | W147: 80.47 | AA147: 100 | AB147: 70 | AC147: 79.03 | AD147: 41.67 | AE147: 82.61 | AF147: 540.36
A148: 9A1 | B148: الاسم 146 | C148: 96 | D148: 78 | E148: 86.43 | F148: 94 | G148: 77 | H148: 80.9 | I148: 93.7 | J148: 92.75 | K148: 92.97 | L148: 98 | M148: 57 | N148: 83.29 | R148: 99 | S148: 76 | T148: 92.44 | U148: 100 | V148: 74 | W148: 87.58 | AA148: 98 | AB148: 100 | AC148: 99.56 | AD148: 99.67 | AE148: 90 | AF148: 623.17
A149: 9A1 | B149: الاسم 147 | C149: 80 | D149: 48 | E149: 70.27 | F149: 96 | G149: 78 | H149: 82.13 | I149: 90.5 | J149: 57.5 | K149: 73.52 | L149: 92 | M149: 42 | N149: 77.43 | R149: 92 | S149: 53 | T149: 79.77 | U149: 93 | V149: 65 | W149: 81.56 | AA149: 95 | AB149: 71 | AC149: 78.93 | AD149: 68.93 | AE149: 85.6 | AF149: 543.61
A150: 9A1 | B150: الاسم 148 | C150: 81 | D150: 54 | E150: 72.66 | F150: 92 | G150: 78 | H150: 81.23 | I150: 90 | J150: 59.5 | K150: 74.16 | L150: 78 | M150: 37 | N150: 74.87 | R150: 87 | S150: 37 | T150: 72.84 | U150: 80 | V150: 60 | W150: 77.77 | AA150: 92 | AB150: 79 | AC150: 81.89 | AD150: 67.93 | AE150: 92 | AF150: 535.42
A151: 9A1 | B151: الاسم 149 | C151: 84 | D151: 64 | E151: 76.79 | F151: 92 | G151: 91 | H151: 91.41 | I151: 91.7 | J151: 79.5 | K151: 82.66 | L151: 82 | M151: 69 | N151: 86.46 | R151: 83 | S151: 49 | T151: 77.16 | U151: 90 | V151: 62 | W151: 79.61 | AA151: 93 | AB151: 91 | AC151: 91.44 | AD151: 71.5 | AE151: 85.83 | AF151: 585.53
A152: 9A1 | B152: الاسم 150 | C152: 80 | D152: 61 | E152: 75.21 | F152: 84 | G152: 67 | H152: 75.44 | I152: 79.5 | J152: 48.5 | K152: 69.72 | L152: 65 | M152: 18 | N152: 68.67 | R152: 72 | S152: 38 | T152: 71.53 | U152: 76 | V152: 45 | W152: 71.63 | AA152: 84 | AB152: 70 | AC152: 77.99 | AD152: 77.77 | AE152: 79.91 | AF152: 510.19
A153: 9A1 | B153: الاسم 151 | C153: 90 | D153: 60 | E153: 75.92 | F153: 95 | G153: 81 | H153: 84.27 | I153: 92.3 | J153: 83.25 | K153: 85.54 | L153: 80 | M153: 36 | N153: 74.75 | R153: 83 | S153: 38 | T153: 72.78 | U153: 92 | V153: 50 | W153: 75.27 | AA153: 88 | AB153: 86 | AC153: 86.44 | AD153: 60.33 | AE153: 85.13 | AF153: 554.97
A154: 9A1 | B154: الاسم 152 | C154: 85 | D154: 67 | E154: 78.04 | F154: 86 | G154: 63 | H154: 74.11 | I154: 89.4 | J154: 29 | K154: 67.45 | L154: 61 | M154: 21 | N154: 69.11 | R154: 79 | S154: 37 | T154: 71.93 | U154: 85 | V154: 47 | W154: 73.36 | AA154: 87 | AB154: 76 | AC154: 79.54 | AD154: 60.67 | AE154: 79.74 | AF154: 513.54
A155: 9A1 | B155: الاسم 153 | C155: 93 | D155: 64 | E155: 77.77 | F155: 89 | G155: 80 | H155: 82.13 | I155: 74 | J155: 55.25 | K155: 71.11 | L155: 90 | M155: 50 | N155: 79.55 | R155: 85 | S155: 58 | T155: 81.47 | U155: 82 | V155: 67 | W155: 80.94 | AA155: 97 | AB155: 71 | AC155: 79.06 | AD155: 61 | AE155: 84.14 | AF155: 552.03
A156: 9A1 | B156: الاسم 154 | C156: 74 | D156: 53 | E156: 71.52 | F156: 87 | G156: 73 | H156: 78.11 | I156: 65.2 | J156: 37.75 | K156: 67.7 | L156: 67 | M156: 23 | N156: 70 | R156: 71 | S156: 28 | T156: 68.82 | U156: 70 | V156: 53 | W156: 74.02 | AA156: 75 | AB156: 60 | AC156: 75.16 | AD156: 66.37 | AE156: 78.4 | AF156: 505.33
A157: 9A1 | B157: الاسم 155 | C157: 90 | D157: 84 | E157: 89.49 | F157: 92 | G157: 93 | H157: 92.94 | I157: 80.5 | J157: 59.5 | K157: 73.22 | L157: 87 | M157: 75 | N157: 89.63 | R157: 87 | S157: 58 | T157: 81.81 | U157: 89 | V157: 48 | W157: 74.18 | AA157: 98 | AB157: 88 | AC157: 90.22 | AD157: 100 | AE157: 88.3 | AF157: 591.49
A158: 9A1 | B158: الاسم 156 | C158: 79 | D158: 55 | E158: 72.82 | F158: 83 | G158: 73 | H158: 77.66 | I158: 64 | J158: 62.25 | K158: 72.54 | L158: 78 | M158: 35 | N158: 74.31 | R158: 77 | S158: 31 | T158: 69.68 | U158: 79 | V158: 59 | W158: 77.28 | AA158: 88 | AB158: 54 | AC158: 74.64 | AD158: 93.3 | AE158: 82.22 | AF158: 518.93
A159: 9A1 | B159: الاسم 157 | C159: 86 | D159: 67 | E159: 78.15 | F159: 95 | G159: 79 | H159: 82.7 | I159: 82.1 | J159: 46.25 | K159: 69.52 | L159: 89 | M159: 46 | N159: 78.33 | R159: 86 | S159: 44 | T159: 75.51 | U159: 80 | V159: 38 | W159: 69.74 | AA159: 98 | AB159: 78 | AC159: 82.44 | AD159: 41.33 | AE159: 83.25 | AF159: 536.39
A160: 9A1 | B160: الاسم 158 | C160: 86 | D160: 67 | E160: 78.15 | F160: 91 | G160: 81 | H160: 83.37 | I160: 89 | J160: 52.75 | K160: 71.73 | L160: 82 | M160: 33 | N160: 74.06 | R160: 83 | S160: 44 | T160: 75.17 | U160: 80 | V160: 63 | W160: 78.91 | AA160: 91 | AB160: 89 | AC160: 89.44 | AD160: 67.93 | AE160: 83.73 | AF160: 550.83
A161: 9A1 | B161: الاسم 159 | C161: 87 | D161: 70 | E161: 79.4 | F161: 89 | G161: 78 | H161: 80.56 | I161: 92.7 | J161: 71 | K161: 78.41 | L161: 91 | M161: 54 | N161: 81.16 | R161: 83 | S161: 51 | T161: 77.95 | U161: 96 | V161: 58 | W161: 78.74 | AA161: 90 | AB161: 70 | AC161: 78.38 | AD161: 60.33 | AE161: 84.33 | AF161: 554.6
A162: 9A1 | B162: الاسم 160 | C162: 85 | D162: 49 | E162: 71.19 | F162: 92 | G162: 78 | H162: 81.23 | I162: 99.5 | J162: 93.25 | K162: 94.65 | L162: 94 | M162: 53 | N162: 81.1 | R162: 83 | S162: 67 | T162: 86.55 | U162: 96 | V162: 66 | W162: 82.58 | AA162: 100 | AB162: 74 | AC162: 79.93 | AD162: 93.63 | AE162: 87.29 | AF162: 577.23
A163: 9A1 | B163: الاسم 161 | C163: 75 | D163: 60 | E163: 74.29 | F163: 94 | G163: 85 | H163: 87.19 | I163: 92.3 | J163: 75.5 | K163: 79.92 | L163: 83 | M163: 43 | N163: 76.99 | R163: 88 | S163: 46 | T163: 76.53 | U163: 89 | V163: 66 | W163: 81.48 | AA163: 90 | AB163: 77 | AC163: 79.96 | AD163: 94.87 | AE163: 84.19 | AF163: 556.36
A164: 9A1 | B164: الاسم 162 | C164: 79 | D164: 57 | E164: 73.58 | F164: 95 | G164: 76 | H164: 80.33 | I164: 75.5 | J164: 46.75 | K164: 69.33 | L164: 72 | M164: 23 | N164: 70.41 | R164: 85 | S164: 51 | T164: 78.18 | U164: 87 | V164: 36 | W164: 69.74 | AA164: 97 | AB164: 86 | AC164: 88.44 | AD164: 79.67 | AE164: 83.37 | AF164: 530.01
A165: 9A1 | B165: الاسم 163 | C165: 100 | D165: 81 | E165: 89.38 | F165: 99 | G165: 91 | H165: 92.94 | I165: 90.7 | J165: 50.5 | K165: 71.11 | L165: 94 | M165: 84 | N165: 93.64 | R165: 96 | S165: 71 | T165: 90.62 | U165: 98 | V165: 70 | W165: 85.08 | AA165: 97 | AB165: 97 | AC165: 97 | AD165: 51.83 | AE165: 89.61 | AF165: 619.77
A166: 9A1 | B166: الاسم 164 | C166: 87 | D166: 74 | E166: 81.74 | F166: 92 | G166: 73 | H166: 78.66 | I166: 89.5 | J166: 70 | K166: 77.74 | L166: 93 | M166: 57 | N166: 82.68 | R166: 86 | S166: 53 | T166: 79.09 | U166: 94 | V166: 44 | W166: 73.2 | AA166: 97 | AB166: 93 | AC166: 93.89 | AD166: 80.33 | AE166: 85.25 | AF166: 567
A167: 9A1 | B167: الاسم 165 | C167: 78 | D167: 76 | E167: 81.32 | F167: 86 | G167: 78 | H167: 79.94 | I167: 99.5 | J167: 93.25 | K167: 94.65 | L167: 75 | M167: 66 | N167: 84.33 | R167: 82 | S167: 52 | T167: 78.24 | U167: 82 | V167: 48 | W167: 73.42 | AA167: 76 | AB167: 49 | AC167: 72.74 | AD167: 87.27 | AE167: 85.16 | AF167: 564.64
A168: 9G1 | B168: الاسم 166 | C168: 81 | D168: 65 | E168: 82.89 | F168: 86 | G168: 62 | H168: 76.2 | I168: 89 | J168: 83.5 | K168: 90.92 | L168: 77 | M168: 43 | N168: 76.61 | X168: 72 | Y168: 53 | Z168: 77.24 | AA168: 84 | AB168: 74 | AC168: 79.24 | AD168: 91.4 | AE168: 83.63 | AF168: 483.1
A169: 9G1 | B169: الاسم 167 | C169: 85 | D169: 66 | E169: 84.43 | F169: 98 | G169: 75 | H169: 86.27 | I169: 87.6 | J169: 83.25 | K169: 90.62 | L169: 77 | M169: 39 | N169: 75.49 | X169: 77 | Y169: 52 | Z169: 77.41 | AA169: 94 | AB169: 93 | AC169: 94.35 | AD169: 93.3 | AE169: 87.05 | AF169: 508.57
A170: 9G1 | B170: الاسم 168 | C170: 76 | D170: 47 | E170: 74.73 | F170: 73 | G170: 42 | H170: 65.56 | I170: 90.3 | J170: 77.75 | K170: 87.7 | L170: 65 | M170: 48 | N170: 77.05 | X170: 60 | Y170: 30 | Z170: 64.15 | AA170: 68 | AB170: 70 | AC170: 76.4 | AD170: 91.07 | AE170: 81.93 | AF170: 445.59
A171: 9G1 | B171: الاسم 169 | C171: 85 | D171: 66 | E171: 84.43 | F171: 80 | G171: 75 | H171: 81.46 | I171: 98.6 | J171: 100 | K171: 99.82 | L171: 78 | M171: 38 | N171: 75.3 | X171: 79 | Y171: 44 | Z171: 74.65 | AA171: 98 | AB171: 77 | AC171: 83.67 | AD171: 73.63 | AE171: 84.38 | AF171: 499.33
A172: 9G1 | B172: الاسم 170 | C172: 78 | D172: 30 | E172: 68.22 | F172: 60 | G172: 39 | H172: 61.78 | I172: 59.5 | J172: 63.5 | K172: 76.5 | L172: 64 | M172: 18 | N172: 66.11 | X172: 66 | Y172: 37 | Z172: 70.69 | AA172: 60 | AB172: 43 | AC172: 65.59 | AD172: 86.7 | AE172: 71.61 | AF172: 408.89
A173: 9G1 | B173: الاسم 171 | C173: 82 | D173: 72 | E173: 88.14 | F173: 98 | G173: 75 | H173: 86.27 | I173: 89.8 | J173: 80 | K173: 89.13 | L173: 87 | M173: 50 | N173: 79.36 | X173: 90 | Y173: 64 | Z173: 85.93 | AA173: 77 | AB173: 83 | AC173: 83.67 | AD173: 60.33 | AE173: 86.97 | AF173: 512.5
A174: 9G1 | B174: الاسم 172 | C174: 75 | D174: 61 | E174: 79.41 | F174: 95 | G174: 78 | H174: 88.27 | I174: 93.6 | J174: 81.25 | K174: 90.48 | L174: 72 | M174: 59 | N174: 81.47 | X174: 75 | Y174: 43 | Z174: 73.86 | AA174: 83 | AB174: 86 | AC174: 87.33 | AD174: 100 | AE174: 86.71 | AF174: 500.82
A175: 9G1 | B175: الاسم 173 | C175: 75 | D175: 54 | E175: 77.02 | F175: 60 | G175: 39 | H175: 61.78 | I175: 59 | J175: 48.25 | K175: 71.9 | L175: 50 | M175: 29 | N175: 70.56 | X175: 55 | Y175: 26 | Z175: 34.23 | AA175: 60 | AB175: 43 | AC175: 65.59 | AD175: 81.57 | AE175: 68.97 | AF175: 381.08
A176: 9G1 | B176: الاسم 174 | C176: 80 | E176: 60 | F176: 73 | G176: 34 | H176: 61.05 | I176: 88 | J176: 90 | K176: 93.79 | L176: 60 | M176: 46 | N176: 76.09 | X176: 56 | Y176: 71 | Z176: 84.08 | AA176: 72 | AB176: 60 | AC176: 73.46 | AD176: 92.97 | AE176: 74.97 | AF176: 448.47
A177: 9G1 | B177: الاسم 175 | C177: 71 | D177: 58 | E177: 78 | F177: 60 | G177: 48 | H177: 66.86 | I177: 82.5 | J177: 70.25 | K177: 81.1 | L177: 60 | M177: 49 | N177: 76.93 | X177: 63 | Y177: 44 | Z177: 72.96 | AA177: 63 | AB177: 64 | AC177: 73.93 | AD177: 85.37 | AE177: 76.4 | AF177: 449.78
A178: 9G1 | B178: الاسم 176 | C178: 77 | D178: 52 | E178: 76.54 | F178: 79 | G178: 63 | H178: 75.81 | I178: 88 | J178: 77.75 | K178: 87.25 | L178: 60 | M178: 45 | N178: 75.81 | X178: 63 | Y178: 50 | Z178: 75.18 | AA178: 79 | AB178: 84 | AC178: 84.89 | AD178: 58.67 | AE178: 82.87 | AF178: 475.48
A179: 9G1 | B179: الاسم 177 | C179: 85 | D179: 77 | E179: 91.08 | F179: 86 | G179: 76 | H179: 84 | I179: 98.6 | J179: 93.25 | K179: 96.69 | L179: 72 | M179: 62 | N179: 83.27 | X179: 82 | Y179: 52 | Z179: 77.93 | AA179: 90 | AB179: 89 | AC179: 91.02 | AD179: 70.17 | AE179: 86.86 | AF179: 523.99
A180: 9G1 | B180: الاسم 178 | C180: 72 | D180: 60 | E180: 78.78 | F180: 70 | G180: 51 | H180: 70.11 | I180: 88 | J180: 64.5 | K180: 79.23 | L180: 73 | M180: 49 | N180: 77.96 | X180: 83 | Y180: 52 | Z180: 78.04 | AA180: 79 | AB180: 89 | AC180: 88.78 | AD180: 79.67 | AE180: 99 | AF180: 472.9
A181: 9G1 | B181: الاسم 179 | C181: 77 | D181: 48 | E181: 75.17 | F181: 38 | G181: 22 | H181: 25.56 | I181: 69 | J181: 64.75 | K181: 77.68 | L181: 67 | M181: 31 | N181: 72.47 | X181: 60 | Y181: 28 | Z181: 62.44 | AA181: 60 | AB181: 51 | AC181: 69.11 | AD181: 60.33 | AE181: 68.4 | AF181: 382.43
A182: 9G1 | B182: الاسم 180 | C182: 86 | D182: 49 | E182: 76.39 | F182: 92 | G182: 67 | H182: 78.82 | I182: 78.5 | J182: 26.75 | K182: 64.48 | L182: 63 | M182: 25 | N182: 70.48 | X182: 81 | Y182: 36 | Z182: 71.9 | AA182: 90 | AB182: 73 | AC182: 79.47 | AD182: 92.97 | AE182: 76.32 | AF182: 441.54
A183: 9G1 | B183: الاسم 181 | C183: 87 | D183: 59 | E183: 79.9 | F183: 72 | G183: 75 | H183: 79.71 | I183: 86.7 | J183: 81.25 | K183: 89.37 | L183: 76 | M183: 41 | N183: 75.97 | X183: 75 | Y183: 55 | Z183: 78.3 | AA183: 91 | AB183: 69 | AC183: 78.24 | AD183: 83.47 | AE183: 83.21 | AF183: 481.49
A184: 9G1 | B184: الاسم 182 | C184: 90 | D184: 71 | E184: 89.07 | F184: 99 | G184: 67 | H184: 79.6 | I184: 87.5 | J184: 82.25 | K184: 90.14 | L184: 87 | M184: 56 | N184: 82.24 | X184: 78 | Y184: 45 | Z184: 74.92 | AA184: 87 | AB184: 73 | AC184: 79.19 | AD184: 58.67 | AE184: 88.38 | AF184: 495.16
A185: 9G1 | B185: الاسم 183 | C185: 83 | D185: 71 | E185: 87.63 | F185: 82 | G185: 66 | H185: 77.32 | I185: 86.5 | J185: 86.75 | K185: 92.09 | L185: 83 | M185: 48 | N185: 78.48 | X185: 80 | Y185: 49 | Z185: 76.61 | AA185: 92 | AB185: 73 | AC185: 79.66 | AD185: 92.97 | AE185: 85.86 | AF185: 491.79
A186: 9G1 | B186: الاسم 184 | C186: 81 | D186: 65 | E186: 82.89 | F186: 97 | G186: 78 | H186: 88.8 | I186: 76.7 | J186: 72.25 | K186: 81.33 | L186: 87 | M186: 52 | N186: 79.91 | X186: 95 | Y186: 57 | Z186: 82.13 | AA186: 80 | AB186: 79 | AC186: 81.22 | AD186: 87.27 | AE186: 88 | AF186: =SUM(E186,H186,K186,N186,Q186,T186,W186,Z186,AC186) -> 496.28
A187: 9G1 | B187: الاسم 185 | C187: 86 | D187: 70 | E187: 87.53 | F187: 99 | G187: 85 | H187: 92.91 | I187: 99 | J187: 93.25 | K187: 96.75 | L187: 93 | M187: 64 | N187: 88.1 | X187: 85 | Y187: 53 | Z187: 78.62 | AA187: 97 | AB187: 93 | AC187: 94.91 | AD187: 96.2 | AE187: 91.11 | AF187: 538.82
A188: 9G1 | B188: الاسم 186 | C188: 83 | D188: 73 | E188: 89.07 | F188: 80 | G188: 67 | H188: 77.48 | I188: 84.4 | J188: 93.25 | K188: 94.82 | L188: 74 | M188: 43 | N188: 76.37 | X188: 84 | Y188: 44 | Z188: 75.18 | AA188: 86 | AB188: 75 | AC188: 79.76 | AD188: 91.4 | AE188: 84.35 | AF188: 492.68
A189: 9G1 | B189: الاسم 187 | C189: 80 | D189: 42 | E189: 73.41 | F189: 60 | G189: 50 | H189: 67.98 | I189: 59.5 | J189: 76.75 | K189: 81.05 | L189: 60 | M189: 17 | N189: 64.45 | X189: 60 | Y189: 34 | Z189: 67.56 | AA189: 65 | AB189: 66 | AC189: 74.78 | AE189: 73.02 | AF189: 429.23
A190: 9G1 | B190: الاسم 188 | C190: 79 | D190: 36 | E190: 71.27 | F190: 83 | G190: 46 | H190: 69.43 | I190: 59 | J190: 60.25 | K190: 75.48 | L190: 61 | M190: 42 | N190: 75.06 | X190: 61 | Y190: 40 | Z190: 71.27 | AA190: 68 | AB190: 82 | AC190: 80.89 | AE190: 74.11 | AF190: 443.4
A191: 9G1 | B191: الاسم 189 | C191: 83 | D191: 55 | E191: 78.14 | F191: 86 | G191: 87 | H191: 92.12 | I191: 70 | J191: 92.25 | K191: 92.46 | L191: 73 | M191: 46 | N191: 77.13 | X191: 68 | Y191: 37 | Z191: 70.9 | AA191: 80 | AB191: 77 | AC191: 79.85 | AE191: 78.27 | AF191: 490.6
A192: 9G1 | B192: الاسم 190 | C192: 84 | D192: 68 | E192: 85.68 | F192: 93 | G192: 72 | H192: 82.14 | I192: 89.5 | J192: 97.75 | K192: 97.57 | L192: 92 | M192: 57 | N192: 83.71 | X192: 84 | Y192: 49 | Z192: 77.03 | AA192: 97 | AB192: 92 | AC192: 94.26 | AE192: 91 | AF192: 520.39
A193: 9G1 | B193: الاسم 191 | C193: 80 | D193: 53 | E193: 77.17 | F193: 70 | G193: 54 | H193: 71.29 | I193: 99.1 | J193: 87.75 | K193: 94.22 | L193: 62 | M193: 21 | N193: 68 | X193: 74 | Y193: 39 | Z193: 72.28 | AA193: 60 | AB193: 54 | AC193: 70.33 | AE193: 82.6 | AF193: 453.29
A194: 9G2 | B194: الاسم 192 | C194: 82 | D194: 53 | E194: 77.36 | F194: 73 | G194: 56 | H194: 72.4 | I194: 89.4 | J194: 76.75 | K194: 86.84 | L194: 90 | M194: 36 | N194: 75.69 | X194: 81 | Y194: 40 | Z194: 73.38 | AA194: 87 | AB194: 78 | AC194: 82 | AE194: 83.78 | AF194: 467.67
A195: 9G2 | B195: الاسم 193 | C195: 84 | D195: 62 | E195: 81.35 | F195: 62 | G195: 63 | H195: 73.91 | I195: 91.3 | J195: 82.25 | K195: 90.64 | L195: 86 | M195: 43 | N195: 77.33 | X195: 80 | Y195: 42 | Z195: 74.02 | AA195: 81 | AB195: 77 | AC195: 79.95 | AE195: 82.57 | AF195: 477.2
A196: 9G2 | B196: الاسم 194 | C196: 75 | D196: 35 | E196: 70.54 | F196: 60 | G196: 36 | H196: 60.08 | I196: 52.7 | J196: 80 | K196: 81.94 | L196: 47 | M196: 44 | N196: 74.5 | X196: 66 | Y196: 30 | Z196: 65.61 | AA196: 68 | AB196: 47 | AC196: 68.36 | AE196: 72.76 | AF196: 421.03
A197: 9G2 | B197: الاسم 195 | C197: 73 | D197: 31 | E197: 67.92 | F197: 62 | G197: 37 | H197: 60.97 | I197: 56.8 | J197: 25.75 | K197: 60.32 | L197: 73 | M197: 32 | N197: 73.22 | X197: 69 | Y197: 34 | Z197: 69.76 | AA197: 60 | AB197: 60 | AC197: 72.32 | AE197: 76.2 | AF197: 404.51
A198: 9G2 | B198: الاسم 196 | C198: 86 | D198: 71 | E198: 88.25 | F198: 70 | G198: 52 | H198: 70.5 | I198: 90.8 | J198: 64.25 | K198: 79.39 | L198: 75 | M198: 22 | N198: 70.6 | X198: 86 | Y198: 53 | Z198: 78.72 | AA198: 81 | AB198: 82 | AC198: 83.78 | AE198: 81.87 | AF198: 471.24
A199: 9G2 | B199: الاسم 197 | C199: 80 | D199: 49 | E199: 75.8 | F199: 72 | G199: 54 | H199: 71.51 | I199: 84.4 | J199: 69 | K199: 80.62 | L199: 80 | M199: 47 | N199: 77.96 | X199: 87 | Y199: 45 | Z199: 75.87 | AA199: 80 | AB199: 85 | AC199: 85.89 | AE199: 82.42 | AF199: 467.65
A200: 9G2 | B200: الاسم 198 | C200: 82 | D200: 79 | E200: 91.45 | F200: 81 | G200: 78 | H200: 84.54 | I200: 89.6 | J200: 83.5 | K200: 91 | L200: 88 | M200: 45 | N200: 78.04 | X200: 86 | Y200: 60 | Z200: 82.43 | AA200: 98 | AB200: 90 | AC200: 93.15 | AE200: 82.86 | AF200: 520.61
... 510 more rows
